Workbook

Sheet MEDIÇÃO FINAL
C2: PLANILHA DE MEDIÇÃO DOS SERVIÇOS EXECUTADOS
C3: OBRA: SUBSTITUIÇÃO DE TELHAS E CONSTRUÇÃO DO CASTELO D’ÁGUA DO FÓRUM DA COMARCA DE ITATIAIA | N3: CONTRATO 003/0236/2020 = R$ 715.460,00+ 1º TERMO 003/0489/2020: ACRÉSCIMO R$ 69.470,67 + 2º TERMO 003/0049/2021: ACRÉSCIMO R$ 110.677,23 + 4º TERMO 003/0308/2021: ACRÉSCIMO R$ 20.855,10 = R$ 916.463,00
C4: FISCAL: JORGE GASPAR / CLAUDIO MENEZES / EDGARD SILVA / JIVERLEI MARQUEZINI
C5: FISCAL SUBSTITUTO: SÉRGIO BRANDÃO
C6: CONTRATADA: CONSTROI ARQUITETURA E ENGENHARIA EIRELI | AT6: VARIAÇÃO CONTRATUAL: | AW6: 0.1310003967
C7: SERVIÇOS EXECUTADOS EM QUANTITATIVO (SERV. PLANILHADOS E NÃO PLANILHADOS)
C8: CÓDIGO DO SERVIÇO | D8: DESCRIÇÃO DO SERVIÇO | E8: QUANTIDADE | G8: ACRÉSCIMO I REDUÇÃO I | H8: ACRÉSCIMO II | I8: ACRÉSCIMO III REDUÇÃO II | J8: QUANTIDADE FINAL | K8: VALOR ORÇADO DO CONTRATO | O8: PERÍODO: 15/07/20 a 13/08/20 | R8: PERÍODO: 14/08/2020 a 12/09/2020 | U8: PERÍODO:13/09/2020 a 12/10/2020 | X8: PERÍODO:13/10/2020 A 11/11/2020 | AA8: PERÍODO: 12/11/2020 a 11/12/2020 | AD8: PERÍODO:12/12/2020 a 10/01/2021 | AG8: PERÍODO:11/01/2021 A 09/02/2021 | AJ8: PERÍODO: 10/02/2021 A 11/03/2021 | AM8: PERÍODO:12/03/2021 a 10/04/2021 | AP8: PERÍODO:11/04/2021 A 10/05/2021 | AS8: ="ACUMULADO ATÉ " & AZ10 -> ACUMULADO ATÉ 10ª MEDIÇÃO
E9: UNID. | F9: PLANILHA CONTRATUAL | K9: COM DESCONTO (APLICADO NO VALOR TOTAL) | M9: SEM DESCONTO | O9: QUANTIDADE | P9: VALOR MEDIDO | R9: QUANTIDADE | S9: VALOR MEDIDO | U9: QUANTIDADE | V9: VALOR MEDIDO | X9: QUANTIDADE | Y9: VALOR MEDIDO | AA9: QUANTIDADE | AB9: VALOR MEDIDO | AD9: QUANTIDADE | AE9: VALOR MEDIDO | AG9: QUANTIDADE | AH9: VALOR MEDIDO | AJ9: QUANTIDADE | AK9: VALOR MEDIDO | AM9: QUANTIDADE | AN9: VALOR MEDIDO | AP9: QUANTIDADE | AQ9: VALOR MEDIDO | AS9: QUANTIDADE ACUMULADA | AT9: VALOR ACUMULADO | AV9: QUANTIDADE A REALIZAR | AW9: VALOR A REALIZAR
O10: 1ª MEDIÇÃO | P10: COM DESCONTO | Q10: SEM DESCONTO | R10: 2ª MEDIÇÃO | S10: COM DESCONTO | T10: SEM DESCONTO | U10: 3ª MEDIÇÃO | V10: COM DESCONTO | W10: SEM DESCONTO | X10: 4ª MEDIÇÃO | Y10: COM DESCONTO | Z10: SEM DESCONTO | AA10: 5ª MEDIÇÃO | AB10: COM DESCONTO | AC10: SEM DESCONTO | AD10: 6ª MEDIÇÃO | AE10: COM DESCONTO | AF10: SEM DESCONTO | AG10: 7ª MEDIÇÃO | AH10: COM DESCONTO | AI10: SEM DESCONTO | AJ10: 8ª MEDIÇÃO | AK10: COM DESCONTO | AL10: SEM DESCONTO | AM10: 9ª MEDIÇÃO | AN10: COM DESCONTO | AO10: SEM DESCONTO | AP10: 10ª MEDIÇÃO | AQ10: COM DESCONTO | AR10: SEM DESCONTO | AT10: COM DESCONTO | AU10: SEM DESCONTO | AW10: COM DESCONTO | AX10: SEM DESCONTO | AZ10: 10ª MEDIÇÃO | BA10: FILTRO
K11: PREÇO UNITÁRIO | L11: TOTAL (R$) | M11: PREÇO UNITÁRIO | N11: TOTAL (R$)
A13: Família | S13: =ROUND(R13*N13,2) -> 0 | T13: =ROUND(R13*P13,2) -> 0 | V13: =ROUND(U13*Q13,2) -> 0 | W13: =ROUND(U13*S13,2) -> 0 | Y13: =ROUND(X13*T13,2) -> 0 | Z13: =ROUND(X13*V13,2) -> 0 | AB13: =ROUND(AA13*W13,2) -> 0 | AC13: =ROUND(AA13*Y13,2) -> 0 | AE13: =ROUND(AD13*Z13,2) -> 0 | AF13: =ROUND(AD13*AB13,2) -> 0 | AH13: =ROUND(AG13*AC13,2) -> 0 | AI13: =ROUND(AG13*AE13,2) -> 0 | AK13: =ROUND(AJ13*AF13,2) -> 0 | AL13: =ROUND(AJ13*AH13,2) -> 0 | AT13: =SUMIF($O$9:$AL$9,"COM DESCONTO",O13:AL13) -> 0 | AZ13: =INDEX($O$10:$AR$496,ROW()-8,MATCH($AZ$10,$O$10:$AR$10,0)) -> 0 | BA13: MEDIDO
A14: Família | C14: 0 | D14: ADMINISTRAÇÃO | G14: 0 | I14: 0 | J14: =F14+G14+H14 -> 0 | L14: =ROUND((F14*$K14),2)+ROUND((G14*$K14),2)+ROUND((H14*$K14),2) -> 0 | N14: =ROUND(J14*M14,2) -> 0 | P14: =ROUND($O14*$K14,2) -> 0 | Q14: =ROUND($O14*$M14,2) -> 0 | S14: =ROUND($R14*$K14,2) -> 0 | T14: =ROUND($R14*$M14,2) -> 0 | V14: =ROUND($U14*$K14,2) -> 0 | W14: =ROUND($U14*$M14,2) -> 0 | Y14: =ROUND($X14*$K14,2) -> 0 | Z14: =ROUND($X14*$M14,2) -> 0 | AB14: =ROUND($AA14*$K14,2) -> 0 | AC14: =ROUND($AA14*$M14,2) -> 0 | AE14: =ROUND($AD14*$K14,2) -> 0 | AF14: =ROUND($AD14*$M14,2) -> 0 | AH14: =ROUND($AG14*$K14,2) -> 0 | AI14: =ROUND($AG14*$M14,2) -> 0 | AK14: =ROUND($AJ14*$K14,2) -> 0 | AL14: =ROUND($AJ14*$M14,2) -> 0 | AS14: =SUMIF($O$9:$AL$9,"QUANTIDADE",O14:AL14) -> 0 | AT14: =SUMIF($O$9:$AL$9,"COM DESCONTO",O14:AL14) -> 0 | AU14: =SUMIF($O$9:$AL$9,"SEM DESCONTO",O14:AL14) -> 0 | AV14: =J14-AS14 -> 0 | AW14: =L14-AT14 -> 0 | AX14: =N14-AU14 -> 0 | AZ14: =INDEX($O$10:$AR$496,ROW()-8,MATCH($AZ$10,$O$10:$AR$10,0)) -> 0 | BA14: =IF(COUNTIF(BA15:BA19,"MEDIDO")>0,"MEDIDO","NÃO MEDIDO") -> MEDIDO
A15: Família | C15: 100 | D15: ADMINISTRAÇÃO LOCAL DA OBRA | I15: 0 | N15: =ROUND(J15*M15,2) -> 0 | P15: =ROUND($O15*$K15,2) -> 0 | Q15: =ROUND($O15*$M15,2) -> 0 | S15: =ROUND($R15*$K15,2) -> 0 | T15: =ROUND($R15*$M15,2) -> 0 | V15: =ROUND($U15*$K15,2) -> 0 | W15: =ROUND($U15*$M15,2) -> 0 | Y15: =ROUND($X15*$K15,2) -> 0 | Z15: =ROUND($X15*$M15,2) -> 0 | AB15: =ROUND($AA15*$K15,2) -> 0 | AC15: =ROUND($AA15*$M15,2) -> 0 | AE15: =ROUND($AD15*$K15,2) -> 0 | AF15: =ROUND($AD15*$M15,2) -> 0 | AH15: =ROUND($AG15*$K15,2) -> 0 | AI15: =ROUND($AG15*$M15,2) -> 0 | AK15: =ROUND($AJ15*$K15,2) -> 0 | AL15: =ROUND($AJ15*$M15,2) -> 0 | AS15: 0 | AT15: =SUMIF($O$9:$AL$9,"COM DESCONTO",O15:AL15) -> 0 | AU15: =SUMIF($O$9:$AL$9,"SEM DESCONTO",O15:AL15) -> 0 | AV15: =J15-AS15 -> 0 | AW15: =L15-AT15 -> 0 | AX15: =N15-AU15 -> 0 | AZ15: 1.52 | BA15: =IF(COUNTIF(BA16:BA19,"MEDIDO")>0,"MEDIDO","NÃO MEDIDO") -> MEDIDO
A16: Planilhado | C16: 01010.8.3.01U | D16: ADMINISTRAÇÃO - mão de obra mensalista | E16: MÊS | F16: 6 | G16: 0 | H16: 2 | I16: 0 | J16: =F16+G16+H16+I16 -> 8 | K16: 37387.11 | L16: =ROUND((F16*$K16),2)+ROUND((G16*$K16),2)+ROUND((H16*$K16),2)+ROUND((I16*$K16),2) -> 299096.88 | N16: =ROUND((F16*$M16),2)+ROUND((G16*$M16),2)+ROUND((H16*$M16),2)+ROUND((I16*$M16),2) -> 0 | O16: 0.87239994 | P16: =ROUND($O16*$K16,2) -> 32616.51 | Q16: =ROUND($O16*$M16,2) -> 0 | R16: 0.43139989 | S16: =ROUND($R16*$K16,2) -> 16128.8 | T16: =ROUND($R16*$M16,2) -> 0 | U16: 0.35159995 | V16: =ROUND($U16*$K16,2) -> 13145.31 | W16: =ROUND($U16*$M16,2) -> 0 | X16: 0.38999981 | Y16: =ROUND($X16*$K16,2) -> 14580.97 | Z16: =ROUND($X16*$M16,2) -> 0 | AA16: 0.71855087 | AB16: =ROUND($AA16*$K16,2) -> 26864.54 | AC16: =ROUND($AA16*$M16,2) -> 0 | AD16: 0.44133337 | AE16: =ROUND($AD16*$K16,2) -> 16500.18 | AF16: =ROUND($AD16*$M16,2) -> 0 | AG16: 1.2317624 | AH16: =ROUND($AG16*$K16,2) -> 46052.04 | AI16: =ROUND($AG16*$M16,2) -> 0 | AJ16: 1.33005429 | AK16: =ROUND($AJ16*$K16,2) -> 49726.89 | AL16: =ROUND($AJ16*$M16,2) -> 0 | AM16: 0.71537169 | AN16: =ROUND($AM16*$K16,2) -> 26745.68 | AO16: =ROUND($AM16*$M16,2) -> 0 | AP16: 1.51752779 | AQ16: =ROUND($AP16*$K16,2)-0.02 -> 56735.96 | AR16: =ROUND($AP16*$M16,2) -> 0 | AS16: =SUMIF($O$9:$AR$9,"QUANTIDADE",O16:AR16) -> 8 | AT16: =SUMIF($O$10:$AR$11,"COM DESCONTO",O16:AR16) -> 299096.88 | AU16: =SUMIF($O$10:$AR$11,"SEM DESCONTO",O16:AR16) -> 0 | AV16: =J16-AS16 -> 0 | AW16: =L16-AT16 -> 0 | AX16: =N16-AU16 -> 0 | AY16: =SUM(AW16:AW19)*(1-AW6) -> 0 | AZ16: 1.51752779 | BA16: =IF(AZ16<>0,"MEDIDO","NÃO MEDIDO") -> MEDIDO
A17: Planilhado | C17: 01010.8.3.02U | D17: ADMINISTRAÇÃO - transportes, refeições e prêmio assiduidade | E17: MÊS | F17: 6 | G17: 0 | H17: 2 | I17: 0 | J17: =F17+G17+H17+I17 -> 8 | K17: 16362.63 | L17: =ROUND((F17*$K17),2)+ROUND((G17*$K17),2)+ROUND((H17*$K17),2)+ROUND((I17*$K17),2) -> 130901.04 | N17: =ROUND((F17*$M17),2)+ROUND((G17*$M17),2)+ROUND((H17*$M17),2)+ROUND((I17*$M17),2) -> 0 | O17: 0.87239994 | P17: 14274.76 | Q17: 0 | R17: 0.43139989 | S17: 7058.84 | T17: 0 | U17: 0.35159995 | V17: =ROUND($U17*$K17,2) -> 5753.1 | W17: =ROUND($U17*$M17,2) -> 0 | X17: 0.38999981 | Y17: 6381.42 | Z17: 0 | AA17: 0.71855087 | AB17: 11757.38 | AC17: 0 | AD17: 0.44133337 | AE17: 7221.37 | AF17: 0 | AG17: 1.2317624 | AH17: 20154.87 | AI17: 0 | AJ17: 1.33005429 | AK17: 21763.19 | AL17: 0 | AM17: 0.71537169 | AN17: 11705.36 | AO17: =ROUND($AM17*$M17,2) -> 0 | AP17: 1.51752779 | AQ17: =ROUND($AP17*$K17,2) -> 24830.75 | AR17: =ROUND($AP17*$M17,2) -> 0 | AS17: =SUMIF($O$9:$AR$9,"QUANTIDADE",O17:AR17) -> 8 | AT17: =SUMIF($O$10:$AR$11,"COM DESCONTO",O17:AR17) -> 130901.04 | AU17: =SUMIF($O$10:$AR$11,"SEM DESCONTO",O17:AR17) -> 0 | AV17: =J17-AS17 -> 0 | AW17: =L17-AT17 -> 0 | AX17: =N17-AU17 -> 0 | AZ17: 1.51752779 | BA17: =IF(AZ17<>0,"MEDIDO","NÃO MEDIDO") -> MEDIDO
A18: Planilhado | C18: 01010.8.3.04U | D18: ADMINISTRAÇÃO - equipamentos de proteção individual | E18: MÊS | F18: 6 | G18: 0 | H18: 2 | I18: 0 | J18: 8 | K18: 2585.65 | L18: 20685.2 | N18: 0 | O18: 0.87239994 | P18: 2255.72 | Q18: 0 | R18: 0.43139989 | S18: 1115.45 | T18: 0 | U18: 0.35159995 | V18: 909.11 | W18: 0 | X18: 0.38999981 | Y18: 1008.4 | Z18: 0 | AA18: 0.71855087 | AB18: 1857.92 | AC18: 0 | AD18: 0.44133337 | AE18: 1141.13 | AF18: 0 | AG18: 1.2317624 | AH18: 3184.91 | AI18: 0 | AJ18: 1.33005429 | AK18: 3439.05 | AL18: 0 | AM18: 0.71537169 | AN18: 1849.7 | AO18: 0 | AP18: 1.51752779 | AQ18: =ROUND($AP18*$K18,2)+0.01 -> 3923.81 | AR18: 0 | AS18: 8 | AT18: 20685.2 | AU18: 0 | AV18: 0 | AW18: 0 | AX18: 0 | AZ18: 1.51752779 | BA18: =IF(AZ18<>0,"MEDIDO","NÃO MEDIDO") -> MEDIDO
A19: Planilhado | C19: 01010.8.3.05U | D19: ADMINISTRAÇÃO - máquinas e ferramentas | E19: MÊS | F19: 6 | G19: 0 | H19: 2 | I19: 0 | J19: 8 | K19: 2114.46 | L19: 16915.68 | N19: 0 | O19: 0.87239994 | P19: 1844.65 | Q19: 0 | R19: 0.43139989 | S19: 912.18 | T19: 0 | U19: 0.35159995 | V19: 743.44 | W19: 0 | X19: 0.38999981 | Y19: 824.64 | Z19: 0 | AA19: 0.71855087 | AB19: 1519.35 | AC19: 0 | AD19: 0.44133337 | AE19: 933.18 | AF19: 0 | AG19: 1.2317624 | AH19: 2604.51 | AI19: 0 | AJ19: 1.33005429 | AK19: 2812.35 | AL19: 0 | AM19: 0.71537169 | AN19: 1512.62 | AO19: 0 | AP19: 1.51752779 | AQ19: =ROUND($AP19*$K19,2)+0.01 -> 3208.76 | AR19: 0 | AS19: 8 | AT19: 16915.68 | AU19: 0 | AV19: 0 | AW19: 0 | AX19: 0 | AZ19: 0 | BA19: =IF(AZ19<>0,"MEDIDO","NÃO MEDIDO") -> NÃO MEDIDO
A20: Família | C20: 1 | D20: SERVIÇOS INICIAIS | G20: 0 | I20: 0 | J20: 0 | L20: 0 | N20: 0 | AN20: 0 | AO20: 0 | AQ20: 0 | AR20: 0 | AS20: 0 | AT20: 0 | AU20: 0 | AV20: 0 | AW20: 0 | AX20: 0 | AZ20: 0 | BA20: =IF(COUNTIF(BA21:BA26,"MEDIDO")>0,"MEDIDO","NÃO MEDIDO") -> NÃO MEDIDO
A21: Família | C21: 10100 | D21: SERVIÇOS TÉCNICOS | G21: 0 | I21: 0 | J21: 0 | L21: 0 | N21: 0 | AN21: 0 | AO21: 0 | AQ21: 0 | AR21: 0 | AS21: 0 | AT21: 0 | AU21: 0 | AV21: 0 | AW21: 0 | AX21: 0 | AZ21: 335.2 | BA21: =IF(COUNTIF(BA22:BA22,"MEDIDO")>0,"MEDIDO","NÃO MEDIDO") -> NÃO MEDIDO
A22: Planilhado | C22: 01010.8.1.02U | D22: Projeto de "as built" | E22: M2 | F22: 335.2 | G22: 0 | I22: 0 | J22: 335.2 | K22: 1.68 | L22: 563.14 | N22: 0 | P22: =ROUND($O22*$K22,2) -> 0 | Q22: =ROUND($O22*$M22,2) -> 0 | S22: =ROUND($R22*$K22,2) -> 0 | T22: =ROUND($R22*$M22,2) -> 0 | V22: =ROUND($U22*$K22,2) -> 0 | W22: =ROUND($U22*$M22,2) -> 0 | Y22: =ROUND($X22*$K22,2) -> 0 | Z22: =ROUND($X22*$M22,2) -> 0 | AB22: =ROUND($AA22*$K22,2) -> 0 | AC22: =ROUND($AA22*$M22,2) -> 0 | AE22: =ROUND($AD22*$K22,2) -> 0 | AF22: =ROUND($AD22*$M22,2) -> 0 | AH22: =ROUND($AG22*$K22,2) -> 0 | AI22: =ROUND($AG22*$M22,2) -> 0 | AK22: =ROUND($AJ22*$K22,2) -> 0 | AL22: =ROUND($AJ22*$M22,2) -> 0 | AN22: 0 | AO22: 0 | AP22: 335.2 | AQ22: 563.14 | AR22: 0 | AS22: 335.2 | AT22: 563.14 | AU22: 0 | AV22: 0 | AW22: 0 | AX22: 0 | AZ22: 0 | BA22: =IF(AZ22<>0,"MEDIDO","NÃO MEDIDO") -> NÃO MEDIDO
A23: Família | C23: 10400 | D23: DESPESAS DIVERSAS | G23: 0 | I23: 0 | J23: 0 | L23: 0 | N23: 0 | P23: 0 | Q23: 0 | S23: 0 | T23: 0 | V23: =ROUND($U23*$K23,2) -> 0 | W23: =ROUND($U23*$M23,2) -> 0 | Y23: =ROUND($X23*$K23,2) -> 0 | Z23: =ROUND($X23*$M23,2) -> 0 | AB23: =ROUND($AA23*$K23,2) -> 0 | AC23: =ROUND($AA23*$M23,2) -> 0 | AE23: =ROUND($AD23*$K23,2) -> 0 | AF23: =ROUND($AD23*$M23,2) -> 0 | AH23: =ROUND($AG23*$K23,2) -> 0 | AI23: =ROUND($AG23*$M23,2) -> 0 | AK23: =ROUND($AJ23*$K23,2) -> 0 | AL23: =ROUND($AJ23*$M23,2) -> 0 | AN23: 0 | AO23: 0 | AQ23: 0 | AR23: 0 | AS23: 0 | AT23: 0 | AU23: 0 | AV23: 0 | AW23: 0 | AX23: 0 | AZ23: 0 | BA23: =IF(COUNTIF(BA24:BA24,"MEDIDO")>0,"MEDIDO","NÃO MEDIDO") -> NÃO MEDIDO
A24: Planilhado | C24: 0104211U | D24: Despesa c/serviços profissionais (despachante) e taxas p/licenças, legalizações junto a órgãos públicos | E24: UN | F24: 1 | G24: 0 | I24: 0 | J24: 1 | K24: 3052.66 | L24: 3052.66 | N24: 0 | O24: 1 | P24: 3052.66 | Q24: 0 | S24: 0 | T24: 0 | V24: =ROUND($U24*$K24,2) -> 0 | W24: =ROUND($U24*$M24,2) -> 0 | Y24: =ROUND($X24*$K24,2) -> 0 | Z24: =ROUND($X24*$M24,2) -> 0 | AB24: =ROUND($AA24*$K24,2) -> 0 | AC24: =ROUND($AA24*$M24,2) -> 0 | AE24: =ROUND($AD24*$K24,2) -> 0 | AF24: =ROUND($AD24*$M24,2) -> 0 | AH24: =ROUND($AG24*$K24,2) -> 0 | AI24: =ROUND($AG24*$M24,2) -> 0 | AK24: =ROUND($AJ24*$K24,2) -> 0 | AL24: =ROUND($AJ24*$M24,2) -> 0 | AN24: 0 | AO24: 0 | AQ24: 0 | AR24: 0 | AS24: 1 | AT24: 3052.66 | AU24: 0 | AV24: 0 | AW24: 0 | AX24: 0 | AZ24: 0 | BA24: =IF(AZ24<>0,"MEDIDO","NÃO MEDIDO") -> NÃO MEDIDO
A25: Família | C25: 10500 | D25: ENSAIOS DE LABORATÓRIO OU CAMPO | G25: 0 | I25: 0 | J25: 0 | L25: 0 | N25: 0 | P25: 0 | Q25: 0 | S25: 0 | T25: 0 | V25: 0 | W25: 0 | Y25: 0 | Z25: 0 | AB25: 0 | AC25: 0 | AE25: 0 | AF25: 0 | AH25: 0 | AI25: 0 | AK25: 0 | AL25: 0 | AN25: 0 | AO25: 0 | AQ25: 0 | AR25: 0 | AS25: 0 | AT25: 0 | AU25: 0 | AV25: 0 | AW25: 0 | AX25: 0 | AZ25: 0 | BA25: =IF(COUNTIF(BA26:BA26,"MEDIDO")>0,"MEDIDO","NÃO MEDIDO") -> NÃO MEDIDO
A26: Planilhado | C26: 03310.8.15.5U | D26: Controle tecnológico de obras em concreto armado, considerando coleta, moldagem e capeamento, transporte até 100km, medido por m³ de concreto colocado nas formas (01.001.0151-0 EMOP) | E26: M3 | F26: 12.36 | G26: 0 | I26: 0 | J26: 12.36 | K26: 23.28 | L26: 287.74 | N26: 0 | P26: 0 | Q26: 0 | S26: 0 | T26: 0 | U26: 4.08 | V26: 94.98 | W26: 0 | X26: 6.68 | Y26: 155.51 | Z26: 0 | AB26: 0 | AC26: 0 | AE26: 0 | AF26: 0 | AH26: 0 | AI26: 0 | AK26: 0 | AL26: 0 | AN26: 0 | AO26: 0 | AQ26: 0 | AR26: 0 | AS26: 10.76 | AT26: 250.49 | AU26: 0 | AV26: 1.6 | AW26: 37.25 | AX26: 0 | AZ26: 0 | BA26: =IF(AZ26<>0,"MEDIDO","NÃO MEDIDO") -> NÃO MEDIDO
A27: Família | C27: 2 | D27: INSTALAÇÃO DO CANTEIRO DE OBRA | G27: 0 | I27: 0 | J27: 0 | L27: 0 | N27: 0 | P27: 0 | Q27: 0 | S27: 0 | T27: 0 | V27: 0 | W27: 0 | Y27: 0 | Z27: 0 | AB27: 0 | AC27: 0 | AE27: 0 | AF27: 0 | AH27: 0 | AI27: 0 | AK27: 0 | AL27: 0 | AN27: 0 | AO27: 0 | AQ27: 0 | AR27: 0 | AS27: 0 | AT27: 0 | AU27: 0 | AV27: 0 | AW27: 0 | AX27: 0 | AZ27: 0 | BA27: =IF(COUNTIF(BA28:BA161,"MEDIDO")>0,"MEDIDO","NÃO MEDIDO") -> MEDIDO
A28: Família | C28: 20100 | D28: DEMOLIÇÕES E RETIRADAS | G28: 0 | I28: 0 | J28: 0 | L28: 0 | N28: 0 | P28: 0 | Q28: 0 | S28: 0 | T28: 0 | V28: 0 | W28: 0 | Y28: 0 | Z28: 0 | AB28: 0 | AC28: 0 | AE28: 0 | AF28: 0 | AH28: 0 | AI28: 0 | AK28: 0 | AL28: 0 | AN28: 0 | AO28: 0 | AQ28: 0 | AR28: 0 | AS28: 0 | AT28: 0 | AU28: 0 | AV28: 0 | AW28: 0 | AX28: 0 | AZ28: 4.5 | BA28: =IF(COUNTIF(BA29:BA57,"MEDIDO")>0,"MEDIDO","NÃO MEDIDO") -> MEDIDO
A29: Planilhado | C29: 01544.8.700.1U | D29: Desmontagem de andaime | E29: M2 | F29: 10.8 | G29: 2.7 | I29: 4.5 | J29: 18 | K29: 2.23 | L29: 40.14 | N29: 0 | P29: 0 | Q29: 0 | R29: 10.8 | S29: 24.08 | T29: 0 | V29: 0 | W29: 0 | Y29: 0 | Z29: 0 | AA29: 2.7 | AB29: 6.02 | AC29: 0 | AE29: 0 | AF29: 0 | AH29: 0 | AI29: 0 | AK29: 0 | AL29: 0 | AN29: 0 | AO29: 0 | AP29: 4.5 | AQ29: 10.04 | AR29: 0 | AS29: 18 | AT29: 40.14 | AU29: 0 | AV29: 0 | AW29: 0 | AX29: 0 | AZ29: 0 | BA29: NÃO MEDIDO
A30: Planilhado | C30: 02.102.000002.SER-U | D30: Demolição de alvenaria sem reaproveitamento (02.102.000002.SER PINI) | E30: M3 | F30: 3.3 | G30: 0 | I30: 0 | J30: 3.3 | K30: 55.08 | L30: 181.76 | N30: 0 | P30: 0 | Q30: 0 | S30: 0 | T30: 0 | V30: 0 | W30: 0 | X30: 0.27 | Y30: 14.87 | Z30: 0 | AA30: 1.95 | AB30: 107.41 | AC30: 0 | AE30: 0 | AF30: 0 | AG30: 0.23 | AH30: 12.67 | AI30: 0 | AK30: 0 | AL30: 0 | AN30: 0 | AO30: 0 | AQ30: 0 | AR30: 0 | AS30: 2.45 | AT30: 134.95 | AU30: 0 | AV30: 0.85 | AW30: 46.81 | AX30: 0 | AZ30: 21.3 | BA30: MEDIDO
A31: Planilhado | C31: 02.102.0000040.SER-U | D31: Remoção de telha cerâmica | E31: M2 | F31: 309 | G31: 0 | I31: 21.3 | J31: 330.3 | K31: 11.12 | L31: 3672.94 | N31: 0 | P31: 0 | Q31: 0 | S31: 0 | T31: 0 | V31: 0 | W31: 0 | Y31: 0 | Z31: 0 | AA31: 77.25 | AB31: 859.02 | AC31: 0 | AD31: 169.5 | AE31: 1884.84 | AF31: 0 | AG31: 62.25 | AH31: 692.22 | AI31: 0 | AK31: 0 | AL31: 0 | AN31: 0 | AO31: 0 | AP31: 21.3 | AQ31: 236.86 | AR31: 0 | AS31: 330.3 | AT31: 3672.94 | AU31: 0 | AV31: 0 | AW31: 0 | AX31: 0 | AZ31: 0 | BA31: NÃO MEDIDO
A32: Planilhado | C32: 02.102.0000041.SER-U | D32: Remoção de calhas e condutores (05.001.0072-0 EMOP) | E32: M | F32: 41.2 | G32: 0 | I32: 0 | J32: 41.2 | K32: 3.23 | L32: 133.08 | N32: 0 | P32: 0 | Q32: 0 | S32: 0 | T32: 0 | V32: 0 | W32: 0 | Y32: 0 | Z32: 0 | AA32: 20.6 | AB32: 66.54 | AC32: 0 | AD32: 5.15 | AE32: 16.63 | AF32: 0 | AG32: 15.45 | AH32: 49.9 | AI32: 0 | AK32: 0 | AL32: 0 | AN32: 0 | AO32: 0 | AQ32: 0 | AR32: 0 | AS32: 41.2 | AT32: 133.07 | AU32: 0 | AV32: 0 | AW32: 0.01 | AX32: 0 | AZ32: 0 | BA32: NÃO MEDIDO
A33: Planilhado | C33: 02.102.000006.SER | D33: Demolição de concreto com utilização de martelo rompedor pneumático | E33: M3 | F33: 10.4 | G33: 0 | I33: 0 | J33: 10.4 | K33: 632.92 | L33: 6582.37 | N33: 0 | O33: 2.43 | P33: 1538 | Q33: 0 | R33: 0.9 | S33: 569.63 | T33: 0 | V33: 0 | W33: 0 | Y33: 0 | Z33: 0 | AB33: 0 | AC33: 0 | AE33: 0 | AF33: 0 | AG33: 0.35 | AH33: 221.52 | AI33: 0 | AJ33: 2.62 | AK33: 1658.25 | AL33: 0 | AM33: 0.68 | AN33: 430.39 | AO33: 0 | AQ33: 0 | AR33: 0 | AS33: 6.98 | AT33: 4417.79 | AU33: 0 | AV33: 3.42 | AW33: 2164.58 | AX33: 0 | AZ33: 10.65 | BA33: MEDIDO
A34: Planilhado | C34: 02.102.000010.SER | D34: Demolição de estrutura de madeira para telhado | E34: M2 | F34: 155.5 | G34: 0 | I34: 10.65 | J34: 166.15 | K34: 24.95 | L34: 4145.45 | N34: 0 | P34: 0 | Q34: 0 | S34: 0 | T34: 0 | V34: 0 | W34: 0 | Y34: 0 | Z34: 0 | AA34: 77.25 | AB34: 1927.39 | AC34: 0 | AD34: 46.13 | AE34: 1150.94 | AF34: 0 | AG34: 31.13 | AH34: 776.69 | AI34: 0 | AK34: 0 | AL34: 0 | AN34: 0 | AO34: 0 | AP34: 10.65 | AQ34: 265.72 | AR34: 0 | AS34: 165.16 | AT34: 4120.74 | AU34: 0 | AV34: 0.99 | AW34: 24.71 | AX34: 0 | AZ34: 29.9 | BA34: MEDIDO
A35: Planilhado | C35: 02.102.0000120.SER-U | D35: Retirada cuidadosa de placa de forro removível | E35: M2 | F35: 52.4 | G35: 0 | I35: 29.9 | J35: 82.3 | K35: 1.85 | L35: 152.26 | N35: 0 | P35: 0 | Q35: 0 | S35: 0 | T35: 0 | V35: 0 | W35: 0 | Y35: 0 | Z35: 0 | AA35: 51.8 | AB35: 95.83 | AC35: 0 | AE35: 0 | AF35: 0 | AH35: 0 | AI35: 0 | AK35: 0 | AL35: 0 | AN35: 0 | AO35: 0 | AP35: 29.9 | AQ35: 55.32 | AR35: 0 | AS35: 81.7 | AT35: 151.15 | AU35: 0 | AV35: 0.6 | AW35: 1.11 | AX35: 0 | AZ35: 0 | BA35: NÃO MEDIDO
A36: Planilhado | C36: 02.102.0000200.SER-U | D36: Demolição de piso em ardósia | E36: M2 | F36: 23 | G36: 20.16 | I36: 0 | J36: 43.16 | K36: 12.85 | L36: 554.61 | N36: 0 | P36: 0 | Q36: 0 | S36: 0 | T36: 0 | V36: 0 | W36: 0 | Y36: 0 | Z36: 0 | AB36: 0 | AC36: 0 | AE36: 0 | AF36: 0 | AG36: 14.14 | AH36: 181.7 | AI36: 0 | AJ36: 14.69 | AK36: 188.77 | AL36: 0 | AN36: 0 | AO36: 0 | AQ36: 0 | AR36: 0 | AS36: 28.83 | AT36: 370.47 | AU36: 0 | AV36: 14.33 | AW36: 184.14 | AX36: 0 | AZ36: 0 | BA36: NÃO MEDIDO
A37: Planilhado | C37: 02.102.000031.SER | D37: Remoção de esquadria metálica sem reaproveitamento | E37: M2 | F37: 7.5 | G37: 0 | I37: 0 | J37: 7.5 | K37: 9.18 | L37: 68.85 | N37: 0 | O37: 6.3 | P37: 57.83 | Q37: 0 | S37: 0 | T37: 0 | V37: 0 | W37: 0 | Y37: 0 | Z37: 0 | AB37: 0 | AC37: 0 | AE37: 0 | AF37: 0 | AH37: 0 | AI37: 0 | AK37: 0 | AL37: 0 | AM37: 0.7 | AN37: 6.43 | AO37: 0 | AQ37: 0 | AR37: 0 | AS37: 7 | AT37: 64.26 | AU37: 0 | AV37: 0.5 | AW37: 4.59 | AX37: 0 | AZ37: 0 | BA37: NÃO MEDIDO
A38: Planilhado | C38: 02.102.000032.SER | D38: Remoção de esquadria de madeira, inclusive batente | E38: M2 | F38: 1.7 | G38: 0 | I38: 0 | J38: 1.7 | K38: 14.69 | L38: 24.97 | N38: 0 | P38: 0 | Q38: 0 | S38: 0 | T38: 0 | V38: 0 | W38: 0 | Y38: 0 | Z38: 0 | AA38: 1.39 | AB38: 20.42 | AC38: 0 | AE38: 0 | AF38: 0 | AH38: 0 | AI38: 0 | AK38: 0 | AL38: 0 | AN38: 0 | AO38: 0 | AQ38: 0 | AR38: 0 | AS38: 1.39 | AT38: 20.42 | AU38: 0 | AV38: 0.31 | AW38: 4.55 | AX38: 0 | AZ38: 0 | BA38: NÃO MEDIDO
A39: Planilhado | C39: 020103U | D39: Retirada de caixas 4x2'', 4x4''x 15x15 cm, octogonal - embutidas e aparentes | E39: UN | F39: 2 | G39: 0 | I39: 0 | J39: 2 | K39: 1.7 | L39: 3.4 | N39: 0 | P39: 0 | Q39: 0 | S39: 0 | T39: 0 | V39: 0 | W39: 0 | Y39: 0 | Z39: 0 | AA39: 2 | AB39: 3.4 | AC39: 0 | AE39: 0 | AF39: 0 | AH39: 0 | AI39: 0 | AK39: 0 | AL39: 0 | AN39: 0 | AO39: 0 | AQ39: 0 | AR39: 0 | AS39: 2 | AT39: 3.4 | AU39: 0 | AV39: 0 | AW39: 0 | AX39: 0 | AZ39: 0 | BA39: NÃO MEDIDO
A40: Planilhado | C40: 020159U | D40: Retirada de perfilado ou canaleta incl. conex., fix. e tomadas | E40: M | F40: 9 | G40: 0 | I40: -9 | J40: 0 | K40: 2.35 | L40: 0 | N40: 0 | P40: 0 | Q40: 0 | S40: 0 | T40: 0 | V40: 0 | W40: 0 | Y40: 0 | Z40: 0 | AB40: 0 | AC40: 0 | AE40: 0 | AF40: 0 | AH40: 0 | AI40: 0 | AK40: 0 | AL40: 0 | AN40: 0 | AO40: 0 | AQ40: 0 | AR40: 0 | AS40: 0 | AT40: 0 | AU40: 0 | AV40: 0 | AW40: 0 | AX40: 0 | AZ40: 0 | BA40: NÃO MEDIDO
A41: Planilhado | C41: 020622U | D41: Retirada de cabo telefônico de qualquer tipo até 20 pares | E41: M | F41: 70 | G41: 0 | I41: 0 | J41: 70 | K41: 0.98 | L41: 68.6 | N41: 0 | P41: 0 | Q41: 0 | S41: 0 | T41: 0 | V41: 0 | W41: 0 | Y41: 0 | Z41: 0 | AB41: 0 | AC41: 0 | AE41: 0 | AF41: 0 | AG41: 70 | AH41: 68.6 | AI41: 0 | AK41: 0 | AL41: 0 | AN41: 0 | AO41: 0 | AQ41: 0 | AR41: 0 | AS41: 70 | AT41: 68.6 | AU41: 0 | AV41: 0 | AW41: 0 | AX41: 0 | AZ41: 0 | BA41: NÃO MEDIDO
A42: Planilhado | C42: 020628U | D42: Retirada de fio de sonorização/alarme de qualquer tipo (Paralelo, PP, RG, RGC, RGB, UTP) | E42: M | F42: 110 | G42: 0 | I42: -33.08 | J42: 76.92 | K42: 1.37 | L42: 105.38 | N42: 0 | P42: 0 | Q42: 0 | S42: 0 | T42: 0 | V42: 0 | W42: 0 | Y42: 0 | Z42: 0 | AB42: 0 | AC42: 0 | AE42: 0 | AF42: 0 | AG42: 76.92 | AH42: 105.38 | AI42: 0 | AK42: 0 | AL42: 0 | AN42: 0 | AO42: 0 | AQ42: 0 | AR42: 0 | AS42: 76.92 | AT42: 105.38 | AU42: 0 | AV42: 0 | AW42: 0 | AX42: 0 | AZ42: 0 | BA42: NÃO MEDIDO
A43: Planilhado | C43: 020630U | D43: Retirada de eletroduto / duto de qualquer tipo (aparente) diâmetro de até 1'' | E43: M | F43: 8 | G43: 0 | I43: -8 | J43: 0 | K43: 1.96 | L43: 0 | N43: 0 | P43: 0 | Q43: 0 | S43: 0 | T43: 0 | V43: 0 | W43: 0 | Y43: 0 | Z43: 0 | AB43: 0 | AC43: 0 | AE43: 0 | AF43: 0 | AH43: 0 | AI43: 0 | AK43: 0 | AL43: 0 | AN43: 0 | AO43: 0 | AQ43: 0 | AR43: 0 | AS43: 0 | AT43: 0 | AU43: 0 | AV43: 0 | AW43: 0 | AX43: 0 | AZ43: 0 | BA43: NÃO MEDIDO
A44: Planilhado | C44: 020660U | D44: Retirada de tubulação e conexões de PVC até 75 mm | E44: M | F44: 24 | G44: 0 | I44: 0 | J44: 24 | K44: 2.42 | L44: 58.08 | N44: 0 | P44: 0 | Q44: 0 | S44: 0 | T44: 0 | V44: 0 | W44: 0 | Y44: 0 | Z44: 0 | AB44: 0 | AC44: 0 | AE44: 0 | AF44: 0 | AH44: 0 | AI44: 0 | AK44: 0 | AL44: 0 | AN44: 0 | AO44: 0 | AQ44: 0 | AR44: 0 | AS44: 0 | AT44: 0 | AU44: 0 | AV44: 24 | AW44: 58.08 | AX44: 0 | AZ44: 0 | BA44: NÃO MEDIDO
A45: Planilhado | C45: 020661U | D45: Retirada de tubulação e conexões de PVC de 85 até 150mm | E45: M | F45: 9 | G45: 0 | I45: 0 | J45: 9 | K45: 5.36 | L45: 48.24 | N45: 0 | P45: 0 | Q45: 0 | S45: 0 | T45: 0 | V45: 0 | W45: 0 | X45: 9 | Y45: 48.24 | Z45: 0 | AB45: 0 | AC45: 0 | AE45: 0 | AF45: 0 | AH45: 0 | AI45: 0 | AK45: 0 | AL45: 0 | AN45: 0 | AO45: 0 | AQ45: 0 | AR45: 0 | AS45: 9 | AT45: 48.24 | AU45: 0 | AV45: 0 | AW45: 0 | AX45: 0 | AZ45: 0 | BA45: NÃO MEDIDO
A46: Planilhado | C46: 020666U | D46: Retirada de reservatório dágua em fibras de vidro/polietileno | E46: UN | F46: 1 | G46: 0 | I46: 0 | J46: 1 | K46: 57.6 | L46: 57.6 | N46: 0 | P46: 0 | Q46: 0 | R46: 1 | S46: 57.6 | T46: 0 | V46: 0 | W46: 0 | Y46: 0 | Z46: 0 | AB46: 0 | AC46: 0 | AE46: 0 | AF46: 0 | AH46: 0 | AI46: 0 | AK46: 0 | AL46: 0 | AN46: 0 | AO46: 0 | AQ46: 0 | AR46: 0 | AS46: 1 | AT46: 57.6 | AU46: 0 | AV46: 0 | AW46: 0 | AX46: 0 | AZ46: 0 | BA46: NÃO MEDIDO
A47: Planilhado | C47: 020678U | D47: Desinstalação de antena | E47: UN | F47: 2 | G47: 1 | I47: 0 | J47: 3 | K47: 37.18 | L47: 111.54 | N47: 0 | P47: 0 | Q47: 0 | S47: 0 | T47: 0 | V47: 0 | W47: 0 | Y47: 0 | Z47: 0 | AB47: 0 | AC47: 0 | AE47: 0 | AF47: 0 | AG47: 2 | AH47: 74.36 | AI47: 0 | AK47: 0 | AL47: 0 | AN47: 0 | AO47: 0 | AQ47: 0 | AR47: 0 | AS47: 2 | AT47: 74.36 | AU47: 0 | AV47: 1 | AW47: 37.18 | AX47: 0 | AZ47: 0 | BA47: NÃO MEDIDO
A48: Planilhado | C48: 020680U | D48: Retirada de eletroduto/duto de qualquer tipo (embutido) diâmetro até 1" | E48: M | F48: 5 | G48: 0 | I48: -5 | J48: 0 | K48: 3.53 | L48: 0 | N48: 0 | P48: 0 | Q48: 0 | S48: 0 | T48: 0 | V48: 0 | W48: 0 | Y48: 0 | Z48: 0 | AB48: 0 | AC48: 0 | AE48: 0 | AF48: 0 | AH48: 0 | AI48: 0 | AK48: 0 | AL48: 0 | AN48: 0 | AO48: 0 | AQ48: 0 | AR48: 0 | AS48: 0 | AT48: 0 | AU48: 0 | AV48: 0 | AW48: 0 | AX48: 0 | AZ48: 0 | BA48: NÃO MEDIDO
A49: Planilhado | C49: 02220.8.2.110U | D49: Remoção de escada, plataforma e guarda corpo de madeira p/acessar abrigos provisórios | E49: M | F49: 29.3 | G49: 0 | I49: 0 | J49: 29.3 | K49: 54.53 | L49: 1597.73 | N49: 0 | P49: 0 | Q49: 0 | S49: 0 | T49: 0 | V49: 0 | W49: 0 | Y49: 0 | Z49: 0 | AB49: 0 | AC49: 0 | AE49: 0 | AF49: 0 | AH49: 0 | AI49: 0 | AK49: 0 | AL49: 0 | AN49: 0 | AO49: 0 | AQ49: 0 | AR49: 0 | AS49: 0 | AT49: 0 | AU49: 0 | AV49: 29.3 | AW49: 1597.73 | AX49: 0 | AZ49: 0 | BA49: NÃO MEDIDO
A50: Planilhado | C50: 02226.8.1.02U | D50: Retirada de eletrocalha/leito de 150 a 600mm incl.aces.e fixações | E50: M | F50: 1 | G50: 0 | I50: -1 | J50: 0 | K50: 2.75 | L50: 0 | N50: 0 | P50: 0 | Q50: 0 | S50: 0 | T50: 0 | V50: 0 | W50: 0 | Y50: 0 | Z50: 0 | AB50: 0 | AC50: 0 | AE50: 0 | AF50: 0 | AH50: 0 | AI50: 0 | AK50: 0 | AL50: 0 | AN50: 0 | AO50: 0 | AQ50: 0 | AR50: 0 | AS50: 0 | AT50: 0 | AU50: 0 | AV50: 0 | AW50: 0 | AX50: 0 | AZ50: 0 | BA50: NÃO MEDIDO
A51: Planilhado | C51: 02226.8.3.02U | D51: Retirada de caixas de passagem até 502x502mm em PVC ou em ferro, embutida/aparente | E51: UN | F51: 1 | G51: 0 | I51: -1 | J51: 0 | K51: 3.39 | L51: 0 | N51: 0 | P51: 0 | Q51: 0 | S51: 0 | T51: 0 | V51: 0 | W51: 0 | Y51: 0 | Z51: 0 | AB51: 0 | AC51: 0 | AE51: 0 | AF51: 0 | AH51: 0 | AI51: 0 | AK51: 0 | AL51: 0 | AN51: 0 | AO51: 0 | AQ51: 0 | AR51: 0 | AS51: 0 | AT51: 0 | AU51: 0 | AV51: 0 | AW51: 0 | AX51: 0 | AZ51: 0 | BA51: NÃO MEDIDO
A52: Planilhado | C52: 02227.8.1.01U | D52: Retirada de aparelho de ar condicionado de parede | E52: UN | F52: 2 | G52: 0 | I52: 0 | J52: 2 | K52: 16.13 | L52: 32.26 | N52: 0 | P52: 0 | Q52: 0 | S52: 0 | T52: 0 | V52: 0 | W52: 0 | Y52: 0 | Z52: 0 | AB52: 0 | AC52: 0 | AE52: 0 | AF52: 0 | AG52: 2 | AH52: 32.26 | AI52: 0 | AK52: 0 | AL52: 0 | AN52: 0 | AO52: 0 | AQ52: 0 | AR52: 0 | AS52: 2 | AT52: 32.26 | AU52: 0 | AV52: 0 | AW52: 0 | AX52: 0 | AZ52: 0 | BA52: NÃO MEDIDO
A53: Planilhado | C53: 04.108.0001450.SER-U | D53: Corte de grade em perfil barra chata c/ arremate serralheria | E53: M | F53: 5.7 | G53: 0.2 | I53: 0 | J53: 5.9 | K53: 5.71 | L53: 33.69 | N53: 0 | O53: 3.8 | P53: 21.7 | Q53: 0 | R53: 1.9 | S53: 10.85 | T53: 0 | V53: 0 | W53: 0 | Y53: 0 | Z53: 0 | AA53: 0.2 | AB53: 1.14 | AC53: 0 | AE53: 0 | AF53: 0 | AH53: 0 | AI53: 0 | AK53: 0 | AL53: 0 | AN53: 0 | AO53: 0 | AQ53: 0 | AR53: 0 | AS53: 5.9 | AT53: 33.69 | AU53: 0 | AV53: 0 | AW53: 0 | AX53: 0 | AZ53: 6.37 | BA53: MEDIDO
A54: Planilhado | C54: 30.137.000214.SER | D54: Paralelepípedo, retirada e reassentamento sobre coxim de areia | E54: M2 | F54: 21 | G54: 17.22 | I54: 0 | J54: 38.22 | K54: 56.47 | L54: 2158.28 | N54: 0 | O54: 21 | P54: 1185.87 | Q54: 0 | S54: 0 | T54: 0 | V54: 0 | W54: 0 | Y54: 0 | Z54: 0 | AB54: 0 | AC54: 0 | AE54: 0 | AF54: 0 | AG54: 10.44 | AH54: 589.55 | AI54: 0 | AK54: 0 | AL54: 0 | AN54: 0 | AO54: 0 | AP54: 6.37 | AQ54: 359.71 | AR54: 0 | AS54: 37.81 | AT54: 2135.13 | AU54: 0 | AV54: 0.41 | AW54: 23.15 | AX54: 0 | AZ54: 0 | BA54: NÃO MEDIDO
A55: Planilhado | C55: 30.137.0002140.SER-U | D55: Arrancamento e reassentamento de blocos intertravados de concreto | E55: M2 | F55: 1.2 | G55: 0 | I55: 0 | J55: 1.2 | K55: 32.73 | L55: 39.28 | N55: 0 | O55: 1.2 | P55: 39.28 | Q55: 0 | S55: 0 | T55: 0 | V55: 0 | W55: 0 | Y55: 0 | Z55: 0 | AB55: 0 | AC55: 0 | AE55: 0 | AF55: 0 | AH55: 0 | AI55: 0 | AK55: 0 | AL55: 0 | AN55: 0 | AO55: 0 | AQ55: 0 | AR55: 0 | AS55: 1.2 | AT55: 39.28 | AU55: 0 | AV55: 0 | AW55: 0 | AX55: 0 | AZ55: 86.01 | BA55: MEDIDO
A56: Ñ Plan s/desc | C56: 02.102.0000351.SER-U | D56: Remoção de pintura a látex acrílica | E56: M2 | G56: 309.05 | I56: 86.01 | J56: 395.06 | L56: 0 | M56: 8.13 | N56: 3211.84 | V56: 0 | W56: 0 | Y56: 0 | Z56: 0 | AB56: 0 | AC56: 0 | AE56: 0 | AF56: 0 | AG56: 115.78 | AH56: 0 | AI56: 941.29 | AJ56: 61.41 | AK56: 0 | AL56: 499.26 | AM56: 33.22 | AN56: 0 | AO56: 270.08 | AP56: 86.01 | AQ56: 0 | AR56: 699.26 | AS56: 296.42 | AT56: 0 | AU56: 2409.89 | AV56: 98.64 | AW56: 0 | AX56: 801.95 | AZ56: 3.72 | BA56: =IF(AZ56<>0,"MEDIDO","NÃO MEDIDO") -> MEDIDO
A57: Ñ Plan s/desc | C57: 02.102.000045.SER | D57: Demolição de revestimento com argamassa | E57: M2 | G57: 123.6 | I57: 0 | J57: 123.6 | L57: 0 | M57: 9.95 | N57: 1229.82 | V57: 0 | W57: 0 | Y57: 0 | Z57: 0 | AB57: 0 | AC57: 0 | AE57: 0 | AF57: 0 | AG57: 4.5 | AH57: 0 | AI57: 44.78 | AJ57: 3.97 | AK57: 0 | AL57: 39.5 | AN57: 0 | AO57: 0 | AP57: 3.72 | AQ57: 0 | AR57: 37.01 | AS57: 12.19 | AT57: 0 | AU57: 121.29 | AV57: 111.41 | AW57: 0 | AX57: 1108.53 | AZ57: 0 | BA57: =IF(AZ57<>0,"MEDIDO","NÃO MEDIDO") -> NÃO MEDIDO
A58: Família | C58: 20200 | D58: LIMPEZA DO TERRENO | G58: 0 | I58: 0 | J58: 0 | L58: 0 | N58: 0 | P58: 0 | Q58: 0 | S58: 0 | T58: 0 | V58: 0 | W58: 0 | Y58: 0 | Z58: 0 | AB58: 0 | AC58: 0 | AE58: 0 | AF58: 0 | AH58: 0 | AI58: 0 | AK58: 0 | AL58: 0 | AN58: 0 | AO58: 0 | AQ58: 0 | AR58: 0 | AS58: 0 | AT58: 0 | AU58: 0 | AV58: 0 | AW58: 0 | AX58: 0 | AZ58: 1 | BA58: =IF(COUNTIF(BA59:BA62,"MEDIDO")>0,"MEDIDO","NÃO MEDIDO") -> MEDIDO
A59: Planilhado | C59: 02.103.0000120.SER-U | D59: Poda em altura de árvore c/ diâmetro de tronco maior ou igual a 0,60m (98535 SINAPI) | E59: UN | F59: 2 | G59: 0 | I59: 0 | J59: 2 | K59: 936.09 | L59: 1872.18 | N59: 0 | P59: 0 | Q59: 0 | S59: 0 | T59: 0 | V59: 0 | W59: 0 | Y59: 0 | Z59: 0 | AB59: 0 | AC59: 0 | AE59: 0 | AF59: 0 | AH59: 0 | AI59: 0 | AK59: 0 | AL59: 0 | AN59: 0 | AO59: 0 | AP59: 1 | AQ59: 936.09 | AR59: 0 | AS59: 1 | AT59: 936.09 | AU59: 0 | AV59: 1 | AW59: 936.09 | AX59: 0 | AZ59: 1 | BA59: MEDIDO
A60: Planilhado | C60: 30.147.0000600.SER-U | D60: Destocamento mecânico de tocos c/ diâmetro superior a 0,50m (01.006.0003-0 EMOP) | E60: UN | F60: 2 | G60: 0 | I60: 0 | J60: 2 | K60: 134.66 | L60: 269.32 | N60: 0 | P60: 0 | Q60: 0 | S60: 0 | T60: 0 | V60: 0 | W60: 0 | Y60: 0 | Z60: 0 | AB60: 0 | AC60: 0 | AE60: 0 | AF60: 0 | AH60: 0 | AI60: 0 | AK60: 0 | AL60: 0 | AN60: 0 | AO60: 0 | AP60: 1 | AQ60: 134.66 | AR60: 0 | AS60: 1 | AT60: 134.66 | AU60: 0 | AV60: 1 | AW60: 134.66 | AX60: 0 | AZ60: 0 | BA60: NÃO MEDIDO
A61: Planilhado | C61: 30.147.0007100.SER-U | D61: Remoção de espécies vegetais, porte muda até 2m altura | E61: UN | F61: 6 | G61: 0 | I61: 0 | J61: 6 | K61: 7.42 | L61: 44.52 | N61: 0 | O61: 6 | P61: 44.52 | Q61: 0 | S61: 0 | T61: 0 | V61: 0 | W61: 0 | Y61: 0 | Z61: 0 | AB61: 0 | AC61: 0 | AE61: 0 | AF61: 0 | AH61: 0 | AI61: 0 | AK61: 0 | AL61: 0 | AN61: 0 | AO61: 0 | AQ61: 0 | AR61: 0 | AS61: 6 | AT61: 44.52 | AU61: 0 | AV61: 0 | AW61: 0 | AX61: 0 | AZ61: 1 | BA61: MEDIDO
A62: Ñ Plan c/desc | C62: 02.103.00098.SER-U | D62: Remoção de espécies vegetais, porte grande (acima de 6m de altura), inclusive carga, descarga e transporte do material até 30 Km (22.030.0065-0 - EMOP) | E62: UN | I62: 1 | J62: 1 | K62: 482.42 | L62: 482.42 | N62: 0 | AP62: 1 | AQ62: 482.42 | AR62: 0 | AS62: 1 | AT62: 482.42 | AU62: 0 | AV62: 0 | AW62: 0 | AX62: 0 | AZ62: 0 | BA62: =IF(AZ62<>0,"MEDIDO","NÃO MEDIDO") -> NÃO MEDIDO
A63: Família | C63: 20500 | D63: INSTALAÇÃO PROVISÓRIA DE ÁGUA E ESGOTO | G63: 0 | I63: 0 | J63: 0 | L63: 0 | N63: 0 | P63: 0 | Q63: 0 | S63: 0 | T63: 0 | V63: 0 | W63: 0 | Y63: 0 | Z63: 0 | AB63: 0 | AC63: 0 | AE63: 0 | AF63: 0 | AH63: 0 | AI63: 0 | AK63: 0 | AL63: 0 | AN63: 0 | AO63: 0 | AQ63: 0 | AR63: 0 | AS63: 0 | AT63: 0 | AU63: 0 | AV63: 0 | AW63: 0 | AX63: 0 | AZ63: 0 | BA63: =IF(COUNTIF(BA64:BA86,"MEDIDO")>0,"MEDIDO","NÃO MEDIDO") -> MEDIDO
A64: Planilhado | C64: 13.102.000011.SER | D64: Tubo PVC soldável inclusive conexões Ø 25 mm | E64: M | F64: 24 | G64: 0 | I64: 0 | J64: 24 | K64: 21.13 | L64: 507.12 | N64: 0 | O64: 2.3 | P64: 48.6 | Q64: 0 | R64: 9.4 | S64: 198.62 | T64: 0 | V64: 0 | W64: 0 | Y64: 0 | Z64: 0 | AB64: 0 | AC64: 0 | AE64: 0 | AF64: 0 | AH64: 0 | AI64: 0 | AJ64: 6.1 | AK64: 128.89 | AL64: 0 | AN64: 0 | AO64: 0 | AQ64: 0 | AR64: 0 | AS64: 17.8 | AT64: 376.11 | AU64: 0 | AV64: 6.2 | AW64: 131.01 | AX64: 0 | AZ64: 0 | BA64: NÃO MEDIDO
A65: Planilhado | C65: 13.102.000012.SER | D65: Tubo PVC soldável inclusive conexões Ø 32 mm | E65: M | F65: 18 | G65: 0 | I65: 0 | J65: 18 | K65: 31.72 | L65: 570.96 | N65: 0 | O65: 13.15 | P65: 417.12 | Q65: 0 | R65: 2.5 | S65: 79.3 | T65: 0 | V65: 0 | W65: 0 | Y65: 0 | Z65: 0 | AB65: 0 | AC65: 0 | AE65: 0 | AF65: 0 | AH65: 0 | AI65: 0 | AJ65: 2.35 | AK65: 74.54 | AL65: 0 | AN65: 0 | AO65: 0 | AQ65: 0 | AR65: 0 | AS65: 18 | AT65: 570.96 | AU65: 0 | AV65: 0 | AW65: 0 | AX65: 0 | AZ65: 0 | BA65: NÃO MEDIDO
A66: Planilhado | C66: 13.102.000013.SER | D66: Tubo PVC soldável inclusive conexões Ø 40 mm | E66: M | F66: 30 | G66: 0 | I66: 0 | J66: 30 | K66: 41.78 | L66: 1253.4 | N66: 0 | P66: 0 | Q66: 0 | R66: 9.4 | S66: 392.73 | T66: 0 | V66: 0 | W66: 0 | Y66: 0 | Z66: 0 | AB66: 0 | AC66: 0 | AE66: 0 | AF66: 0 | AH66: 0 | AI66: 0 | AK66: 0 | AL66: 0 | AN66: 0 | AO66: 0 | AQ66: 0 | AR66: 0 | AS66: 9.4 | AT66: 392.73 | AU66: 0 | AV66: 20.6 | AW66: 860.67 | AX66: 0 | AZ66: 0 | BA66: NÃO MEDIDO
A67: Planilhado | C67: 13.102.000052.SER-U | D67: Joelho 90° soldável PVC com rosca metálica Ø 25 mm x 1/2" | E67: UN | F67: 4 | G67: 0 | I67: 0 | J67: 4 | K67: 19.52 | L67: 78.08 | N67: 0 | O67: 3 | P67: 58.56 | Q67: 0 | S67: 0 | T67: 0 | V67: 0 | W67: 0 | Y67: 0 | Z67: 0 | AB67: 0 | AC67: 0 | AE67: 0 | AF67: 0 | AH67: 0 | AI67: 0 | AK67: 0 | AL67: 0 | AN67: 0 | AO67: 0 | AQ67: 0 | AR67: 0 | AS67: 3 | AT67: 58.56 | AU67: 0 | AV67: 1 | AW67: 19.52 | AX67: 0 | AZ67: 0 | BA67: NÃO MEDIDO
A68: Planilhado | C68: 13.102.000071.SER-U | D68: Tê 90° soldável PVC com rosca metálica Ø 25 mm x 25 mm x 1/2" | E68: UN | F68: 4 | G68: 0 | I68: 0 | J68: 4 | K68: 22.57 | L68: 90.28 | N68: 0 | P68: 0 | Q68: 0 | S68: 0 | T68: 0 | V68: 0 | W68: 0 | Y68: 0 | Z68: 0 | AB68: 0 | AC68: 0 | AE68: 0 | AF68: 0 | AH68: 0 | AI68: 0 | AK68: 0 | AL68: 0 | AN68: 0 | AO68: 0 | AQ68: 0 | AR68: 0 | AS68: 0 | AT68: 0 | AU68: 0 | AV68: 4 | AW68: 90.28 | AX68: 0 | AZ68: 0 | BA68: NÃO MEDIDO
A69: Planilhado | C69: 13.102.0008001.SER-U | D69: Tubo PVC PB Ø 40mm inclusive conexões | E69: M | F69: 12 | G69: 0 | I69: 0 | J69: 12 | K69: 19.29 | L69: 231.48 | N69: 0 | P69: 0 | Q69: 0 | S69: 0 | T69: 0 | V69: 0 | W69: 0 | Y69: 0 | Z69: 0 | AB69: 0 | AC69: 0 | AE69: 0 | AF69: 0 | AH69: 0 | AI69: 0 | AK69: 0 | AL69: 0 | AN69: 0 | AO69: 0 | AQ69: 0 | AR69: 0 | AS69: 0 | AT69: 0 | AU69: 0 | AV69: 12 | AW69: 231.48 | AX69: 0 | AZ69: 0 | BA69: NÃO MEDIDO
A70: Planilhado | C70: 13.102.0008029.SER-U | D70: Tubo PVC PBV Ø 75 mm inclusive conexões | E70: M | F70: 6 | G70: 0 | I70: 0 | J70: 6 | K70: 41.21 | L70: 247.26 | N70: 0 | O70: 0.72 | P70: 29.67 | Q70: 0 | S70: 0 | T70: 0 | V70: 0 | W70: 0 | Y70: 0 | Z70: 0 | AB70: 0 | AC70: 0 | AE70: 0 | AF70: 0 | AH70: 0 | AI70: 0 | AK70: 0 | AL70: 0 | AN70: 0 | AO70: 0 | AQ70: 0 | AR70: 0 | AS70: 0.72 | AT70: 29.67 | AU70: 0 | AV70: 5.28 | AW70: 217.59 | AX70: 0 | AZ70: 4.88 | BA70: MEDIDO
A71: Planilhado | C71: 13.102.0008039.SER-U | D71: Tubo PVC PBV Ø 100 mm inclusive conexões | E71: M | F71: 12 | G71: 0 | I71: 4.88 | J71: 16.88 | K71: 46.47 | L71: 784.41 | N71: 0 | O71: 12 | P71: 557.64 | Q71: 0 | S71: 0 | T71: 0 | V71: 0 | W71: 0 | Y71: 0 | Z71: 0 | AB71: 0 | AC71: 0 | AE71: 0 | AF71: 0 | AH71: 0 | AI71: 0 | AK71: 0 | AL71: 0 | AN71: 0 | AO71: 0 | AP71: 4.88 | AQ71: 226.77 | AR71: 0 | AS71: 16.88 | AT71: 784.41 | AU71: 0 | AV71: 0 | AW71: 0 | AX71: 0 | AZ71: 0 | BA71: NÃO MEDIDO
A72: Planilhado | C72: 13.102.001056.SER-U | D72: Joelho 90° PVC ponta e bolsa soldável Ø 40 mm | E72: UN | F72: 3 | G72: 0 | I72: 0 | J72: 3 | K72: 15.41 | L72: 46.23 | N72: 0 | P72: 0 | Q72: 0 | S72: 0 | T72: 0 | V72: 0 | W72: 0 | Y72: 0 | Z72: 0 | AB72: 0 | AC72: 0 | AE72: 0 | AF72: 0 | AH72: 0 | AI72: 0 | AK72: 0 | AL72: 0 | AN72: 0 | AO72: 0 | AQ72: 0 | AR72: 0 | AS72: 0 | AT72: 0 | AU72: 0 | AV72: 3 | AW72: 46.23 | AX72: 0 | AZ72: 0 | BA72: NÃO MEDIDO
A73: Planilhado | C73: 13.102.001057.SER-U | D73: Joelho 90° PVC ponta bolsa e virola Ø 50 mm | E73: UN | F73: 3 | G73: 0 | I73: 0 | J73: 3 | K73: 18.28 | L73: 54.84 | N73: 0 | O73: 2 | P73: 36.56 | Q73: 0 | S73: 0 | T73: 0 | V73: 0 | W73: 0 | Y73: 0 | Z73: 0 | AB73: 0 | AC73: 0 | AE73: 0 | AF73: 0 | AH73: 0 | AI73: 0 | AK73: 0 | AL73: 0 | AN73: 0 | AO73: 0 | AQ73: 0 | AR73: 0 | AS73: 2 | AT73: 36.56 | AU73: 0 | AV73: 1 | AW73: 18.28 | AX73: 0 | AZ73: 0 | BA73: NÃO MEDIDO
A74: Planilhado | C74: 13.102.001058.SER-U | D74: Joelho 90° PVC ponta bolsa e virola Ø 75 mm | E74: UN | F74: 3 | G74: 0 | I74: 0 | J74: 3 | K74: 28.85 | L74: 86.55 | N74: 0 | P74: 0 | Q74: 0 | S74: 0 | T74: 0 | V74: 0 | W74: 0 | Y74: 0 | Z74: 0 | AB74: 0 | AC74: 0 | AE74: 0 | AF74: 0 | AH74: 0 | AI74: 0 | AK74: 0 | AL74: 0 | AN74: 0 | AO74: 0 | AQ74: 0 | AR74: 0 | AS74: 0 | AT74: 0 | AU74: 0 | AV74: 3 | AW74: 86.55 | AX74: 0 | AZ74: 0 | BA74: NÃO MEDIDO
A75: Planilhado | C75: 13.102.001801.SER-U | D75: Tubo PVC PBV Ø 50 mm inclusive conexões | E75: M | F75: 6 | G75: 0 | I75: 0 | J75: 6 | K75: 28.43 | L75: 170.58 | N75: 0 | O75: 0.5 | P75: 14.22 | Q75: 0 | S75: 0 | T75: 0 | V75: 0 | W75: 0 | Y75: 0 | Z75: 0 | AB75: 0 | AC75: 0 | AE75: 0 | AF75: 0 | AH75: 0 | AI75: 0 | AK75: 0 | AL75: 0 | AN75: 0 | AO75: 0 | AQ75: 0 | AR75: 0 | AS75: 0.5 | AT75: 14.22 | AU75: 0 | AV75: 5.5 | AW75: 156.36 | AX75: 0 | AZ75: 0 | BA75: NÃO MEDIDO
A76: Planilhado | C76: 13.119.000106.SER-U | D76: Registro de gaveta bruto Ø 20 mm - 3/4" | E76: UN | F76: 2 | G76: 0 | I76: 0 | J76: 2 | K76: 56.37 | L76: 112.74 | N76: 0 | O76: 2 | P76: 112.74 | Q76: 0 | S76: 0 | T76: 0 | V76: 0 | W76: 0 | Y76: 0 | Z76: 0 | AB76: 0 | AC76: 0 | AE76: 0 | AF76: 0 | AH76: 0 | AI76: 0 | AK76: 0 | AL76: 0 | AN76: 0 | AO76: 0 | AQ76: 0 | AR76: 0 | AS76: 2 | AT76: 112.74 | AU76: 0 | AV76: 0 | AW76: 0 | AX76: 0 | AZ76: 0 | BA76: NÃO MEDIDO
A77: Planilhado | C77: 13.119.000110.SER-U | D77: Registro de gaveta bruto Ø 25 mm - 1" | E77: UN | F77: 2 | G77: 0 | I77: 0 | J77: 2 | K77: 71.41 | L77: 142.82 | N77: 0 | P77: 0 | Q77: 0 | S77: 0 | T77: 0 | V77: 0 | W77: 0 | Y77: 0 | Z77: 0 | AB77: 0 | AC77: 0 | AE77: 0 | AF77: 0 | AH77: 0 | AI77: 0 | AJ77: 1 | AK77: 71.41 | AL77: 0 | AN77: 0 | AO77: 0 | AQ77: 0 | AR77: 0 | AS77: 1 | AT77: 71.41 | AU77: 0 | AV77: 1 | AW77: 71.41 | AX77: 0 | AZ77: 0 | BA77: NÃO MEDIDO
A78: Planilhado | C78: 13.119.000114.SER-U | D78: Registro de gaveta bruto Ø 32 mm - 1 1/4" | E78: UN | F78: 2 | G78: 0 | I78: 0 | J78: 2 | K78: 100.2 | L78: 200.4 | N78: 0 | O78: 1 | P78: 100.2 | Q78: 0 | S78: 0 | T78: 0 | U78: 1 | V78: 100.2 | W78: 0 | Y78: 0 | Z78: 0 | AB78: 0 | AC78: 0 | AE78: 0 | AF78: 0 | AH78: 0 | AI78: 0 | AK78: 0 | AL78: 0 | AN78: 0 | AO78: 0 | AQ78: 0 | AR78: 0 | AS78: 2 | AT78: 200.4 | AU78: 0 | AV78: 0 | AW78: 0 | AX78: 0 | AZ78: =INDEX($O$10:$AR$496,ROW()-8,MATCH($AZ$10,$O$10:$AR$10,0)) -> 0 | BA78: NÃO MEDIDO
A79: Planilhado | C79: 13.119.000190.SER | D79: Torneira de bóia Ø 32 mm - 1 1/4" | E79: UN | F79: 1 | I79: 0 | J79: 1 | K79: 167.57 | L79: 167.57 | N79: 0 | P79: 0 | Q79: 0 | R79: 1 | S79: 167.57 | T79: 0 | V79: 0 | W79: 0 | Y79: 0 | Z79: 0 | AB79: 0 | AC79: 0 | AE79: 0 | AF79: 0 | AH79: 0 | AI79: 0 | AK79: 0 | AL79: 0 | AN79: 0 | AO79: 0 | AQ79: 0 | AR79: 0 | AS79: 1 | AT79: 167.57 | AU79: 0 | AV79: 0 | AW79: 0 | AX79: 0 | AZ79: 0 | BA79: NÃO MEDIDO
A80: Planilhado | C80: 15132.8.1.33U | D80: Sistema de pressão integrado compacto, V=5,0m³/h, na pressão média 21/30 mca, POT =1,0CV - 220V-3Ø - sucção Ø1.1/4", Recalque Ø11/4" | E80: UN | F80: 1 | I80: 0 | J80: 1 | K80: 123 | L80: 123 | N80: 0 | P80: 0 | Q80: 0 | R80: 1 | S80: 123 | T80: 0 | V80: 0 | W80: 0 | Y80: 0 | Z80: 0 | AB80: 0 | AC80: 0 | AE80: 0 | AF80: 0 | AH80: 0 | AI80: 0 | AK80: 0 | AL80: 0 | AN80: 0 | AO80: 0 | AQ80: 0 | AR80: 0 | AS80: 1 | AT80: 123 | AU80: 0 | AV80: 0 | AW80: 0 | AX80: 0 | AZ80: 0 | BA80: NÃO MEDIDO
A81: Planilhado | C81: 15155.8.6.11U | D81: Caixa de gordura/sifonada PVC rígido 250x230x75mm - completa | E81: UN | F81: 1 | I81: 0 | J81: =F81+G81+H81+I81 -> 1 | K81: 157.29 | L81: =ROUND((F81*$K81),2)+ROUND((G81*$K81),2)+ROUND((H81*$K81),2)+ROUND((I81*$K81),2) -> 157.29 | N81: =ROUND((F81*$M81),2)+ROUND((G81*$M81),2)+ROUND((H81*$M81),2)+ROUND((I81*$M81),2) -> 0 | O81: 1 | P81: 157.29 | Q81: 0 | S81: 0 | T81: 0 | V81: 0 | W81: 0 | Y81: 0 | Z81: 0 | AB81: 0 | AC81: 0 | AE81: 0 | AF81: 0 | AH81: 0 | AI81: 0 | AK81: 0 | AL81: 0 | AN81: =ROUND($AM81*$K81,2) -> 0 | AO81: 0 | AQ81: =ROUND($AP81*$K81,2) -> 0 | AR81: =ROUND($AP81*$M81,2) -> 0 | AS81: =SUMIF($O$9:$AR$9,"QUANTIDADE",O81:AR81) -> 1 | AT81: =SUMIF($O$10:$AR$11,"COM DESCONTO",O81:AR81) -> 157.29 | AU81: =SUMIF($O$10:$AR$11,"SEM DESCONTO",O81:AR81) -> 0 | AV81: =J81-AS81 -> 0 | AW81: =L81-AT81 -> 0 | AX81: =N81-AU81 -> 0 | AZ81: 0 | BA81: NÃO MEDIDO
A82: Planilhado | C82: 15410.8.27.2U | D82: Torneira de lavagem ou jardim D= 1/2 ou 3/4'' | E82: UN | F82: 1 | G82: 0 | I82: 0 | J82: 1 | K82: 120.11 | L82: 120.11 | N82: 0 | O82: 1 | P82: 120.11 | Q82: 0 | S82: 0 | T82: 0 | V82: 0 | W82: 0 | Y82: 0 | Z82: 0 | AB82: 0 | AC82: 0 | AE82: 0 | AF82: 0 | AH82: 0 | AI82: 0 | AK82: 0 | AL82: 0 | AN82: 0 | AO82: =ROUND($AM82*$M82,2) -> 0 | AQ82: 0 | AR82: 0 | AS82: 1 | AT82: 120.11 | AU82: 0 | AV82: 0 | AW82: 0 | AX82: 0 | AZ82: 0 | BA82: NÃO MEDIDO
A83: Planilhado | C83: 15450.8.3.2U | D83: Reservatório dágua de polietileno cap.1000L | E83: UN | F83: 1 | G83: 0 | I83: 0 | J83: 1 | K83: 376.26 | L83: 376.26 | N83: 0 | P83: 0 | Q83: 0 | R83: 1 | S83: 376.26 | T83: 0 | V83: 0 | W83: 0 | Y83: 0 | Z83: 0 | AB83: 0 | AC83: 0 | AE83: 0 | AF83: 0 | AH83: 0 | AI83: 0 | AK83: 0 | AL83: 0 | AN83: 0 | AO83: 0 | AQ83: 0 | AR83: 0 | AS83: 1 | AT83: 376.26 | AU83: 0 | AV83: 0 | AW83: 0 | AX83: 0 | AZ83: 0 | BA83: NÃO MEDIDO
A84: Planilhado | C84: 15900.8.1.10U | D84: Fixação p/tubulação D=1/2 a 4" tipo econômica - cj.completo | E84: UN | F84: 10 | G84: 0 | I84: 0 | J84: 10 | K84: 16.82 | L84: 168.2 | N84: 0 | O84: 10 | P84: 168.2 | Q84: 0 | S84: 0 | T84: 0 | V84: 0 | W84: 0 | Y84: 0 | Z84: 0 | AB84: 0 | AC84: 0 | AE84: 0 | AF84: 0 | AH84: 0 | AI84: 0 | AK84: 0 | AL84: 0 | AN84: 0 | AO84: 0 | AQ84: 0 | AR84: 0 | AS84: 10 | AT84: 168.2 | AU84: 0 | AV84: 0 | AW84: 0 | AX84: 0 | AZ84: 0 | BA84: NÃO MEDIDO
A85: Planilhado | C85: 220250U | D85: Filtro c/ cartucho p/ tripla filtragem - completo | E85: UN | F85: 1 | G85: 0 | I85: 0 | J85: 1 | K85: 253.93 | L85: 253.93 | N85: 0 | O85: 1 | P85: 253.93 | Q85: 0 | S85: 0 | T85: 0 | V85: 0 | W85: 0 | Y85: 0 | Z85: 0 | AB85: 0 | AC85: 0 | AE85: 0 | AF85: 0 | AH85: 0 | AI85: 0 | AK85: 0 | AL85: 0 | AN85: 0 | AO85: 0 | AQ85: 0 | AR85: 0 | AS85: 1 | AT85: 253.93 | AU85: 0 | AV85: 0 | AW85: 0 | AX85: 0 | AZ85: 0 | BA85: NÃO MEDIDO
A86: Planilhado | C86: 15132.8.1.33E | D86: Sistema de pressão integrado compacto, V=5,0m³/h, na pressão média 21/30 mca, POT =1,0CV - 220V-3Ø - sucção Ø1.1/4", Recalque Ø11/4" | E86: UN | F86: 1 | G86: 0 | I86: 0 | J86: 1 | K86: 7272.37 | L86: 7272.37 | N86: 0 | P86: =ROUND($O86*$K86,2) -> 0 | Q86: =ROUND($O86*$M86,2) -> 0 | R86: 1 | S86: =ROUND($R86*$K86,2) -> 7272.37 | T86: =ROUND($R86*$M86,2) -> 0 | V86: 0 | W86: 0 | Y86: 0 | Z86: 0 | AB86: 0 | AC86: 0 | AE86: 0 | AF86: 0 | AH86: 0 | AI86: 0 | AK86: 0 | AL86: 0 | AN86: 0 | AO86: 0 | AQ86: 0 | AR86: 0 | AS86: 1 | AT86: 7272.37 | AU86: 0 | AV86: 0 | AW86: 0 | AX86: 0 | AZ86: 0 | BA86: NÃO MEDIDO
A87: Família | C87: 20600 | D87: INSTALAÇÃO PROVISÓRIA - TELEFONIA | G87: 0 | I87: 0 | J87: 0 | L87: 0 | N87: 0 | P87: 0 | Q87: 0 | S87: 0 | T87: 0 | V87: 0 | W87: 0 | Y87: 0 | Z87: 0 | AB87: 0 | AC87: 0 | AE87: 0 | AF87: 0 | AH87: 0 | AI87: 0 | AK87: 0 | AL87: 0 | AN87: 0 | AO87: 0 | AQ87: 0 | AR87: 0 | AS87: 0 | AT87: 0 | AU87: 0 | AV87: 0 | AW87: 0 | AX87: 0 | AZ87: 0 | BA87: =IF(COUNTIF(BA88:BA98,"MEDIDO")>0,"MEDIDO","NÃO MEDIDO") -> NÃO MEDIDO
A88: Planilhado | C88: 15141.8.30.22U | D88: Braçadeira tipo "D" chapa galv.3/4" c/fixações | E88: UN | F88: 2 | G88: 0 | I88: -2 | J88: 0 | K88: 5 | L88: 0 | N88: 0 | P88: 0 | Q88: 0 | S88: 0 | T88: 0 | V88: 0 | W88: 0 | Y88: 0 | Z88: 0 | AB88: 0 | AC88: 0 | AE88: 0 | AF88: 0 | AH88: 0 | AI88: 0 | AK88: 0 | AL88: 0 | AN88: 0 | AO88: 0 | AQ88: 0 | AR88: 0 | AS88: 0 | AT88: 0 | AU88: 0 | AV88: 0 | AW88: 0 | AX88: 0 | AZ88: 0 | BA88: NÃO MEDIDO
A89: Planilhado | C89: 15141.8.30.44U | D89: Braçadeira tipo "D" chapa galv.1 1/4" c/fixações | E89: UN | F89: 2 | G89: 0 | I89: -2 | J89: 0 | K89: 5.99 | L89: 0 | N89: 0 | P89: 0 | Q89: 0 | S89: 0 | T89: 0 | V89: =ROUND($U89*$K89,2) -> 0 | W89: =ROUND($U89*$M89,2) -> 0 | Y89: =ROUND($X89*$K89,2) -> 0 | Z89: =ROUND($X89*$M89,2) -> 0 | AB89: =ROUND($AA89*$K89,2) -> 0 | AC89: =ROUND($AA89*$M89,2) -> 0 | AE89: =ROUND($AD89*$K89,2) -> 0 | AF89: =ROUND($AD89*$M89,2) -> 0 | AH89: =ROUND($AG89*$K89,2) -> 0 | AI89: =ROUND($AG89*$M89,2) -> 0 | AK89: =ROUND($AJ89*$K89,2) -> 0 | AL89: =ROUND($AJ89*$M89,2) -> 0 | AN89: 0 | AO89: 0 | AQ89: 0 | AR89: 0 | AS89: 0 | AT89: 0 | AU89: 0 | AV89: 0 | AW89: 0 | AX89: 0 | AZ89: 0 | BA89: NÃO MEDIDO
A90: Planilhado | C90: 16.111.001501.SER | D90: Eletroduto PVC rígido roscável inclusive conexões Ø 25 mm 3/4" | E90: M | F90: 3 | G90: 0 | I90: 0 | J90: 3 | K90: 20.29 | L90: 60.87 | N90: 0 | P90: 0 | Q90: 0 | S90: 0 | T90: 0 | V90: 0 | W90: 0 | Y90: 0 | Z90: 0 | AA90: 3 | AB90: 60.87 | AC90: 0 | AE90: 0 | AF90: 0 | AH90: 0 | AI90: 0 | AK90: 0 | AL90: 0 | AN90: 0 | AO90: 0 | AQ90: 0 | AR90: 0 | AS90: 3 | AT90: 60.87 | AU90: 0 | AV90: 0 | AW90: 0 | AX90: 0 | AZ90: 0 | BA90: NÃO MEDIDO
A91: Planilhado | C91: 16135.8.1.21U | D91: Condulete de alumínio multi-uso tipo ''X'' 3/4" c/ tampa cega IP 54 - c/ mínimo 2 tampões de vedação - Fornec. e Inst | E91: UN | F91: 2 | G91: 0 | I91: 0 | J91: 2 | K91: 64.29 | L91: 128.58 | N91: 0 | P91: 0 | Q91: 0 | S91: 0 | T91: 0 | V91: 0 | W91: 0 | Y91: 0 | Z91: 0 | AB91: 0 | AC91: 0 | AE91: 0 | AF91: 0 | AG91: 2 | AH91: 128.58 | AI91: 0 | AK91: 0 | AL91: 0 | AN91: 0 | AO91: 0 | AQ91: 0 | AR91: 0 | AS91: 2 | AT91: 128.58 | AU91: 0 | AV91: 0 | AW91: 0 | AX91: 0 | AZ91: 0 | BA91: NÃO MEDIDO
A92: Planilhado | C92: 16135.8.4.022U | D92: Box reto em alumínio fundido 3/4" | E92: UN | F92: 2 | G92: 0 | I92: -2 | J92: 0 | K92: 6.08 | L92: 0 | N92: 0 | P92: 0 | Q92: 0 | S92: 0 | T92: 0 | V92: 0 | W92: 0 | Y92: 0 | Z92: 0 | AB92: 0 | AC92: 0 | AE92: 0 | AF92: 0 | AH92: 0 | AI92: 0 | AK92: 0 | AL92: 0 | AN92: 0 | AO92: 0 | AQ92: 0 | AR92: 0 | AS92: 0 | AT92: 0 | AU92: 0 | AV92: 0 | AW92: 0 | AX92: 0 | AZ92: 0 | BA92: NÃO MEDIDO
A93: Planilhado | C93: 16135.8.4.044U | D93: Box reto em alumínio fundido 1 1/4" | E93: UN | F93: 1 | G93: 0 | I93: -1 | J93: 0 | K93: 9.34 | L93: 0 | N93: 0 | P93: 0 | Q93: 0 | S93: 0 | T93: 0 | V93: 0 | W93: 0 | Y93: 0 | Z93: 0 | AB93: 0 | AC93: 0 | AE93: 0 | AF93: 0 | AH93: 0 | AI93: 0 | AK93: 0 | AL93: 0 | AN93: 0 | AO93: 0 | AQ93: 0 | AR93: 0 | AS93: 0 | AT93: 0 | AU93: 0 | AV93: 0 | AW93: 0 | AX93: 0 | AZ93: 0 | BA93: NÃO MEDIDO
A94: Planilhado | C94: 16973.8.1.10U | D94: Duto corrugado helicoidal na cor preta, de polietileno de alta densidade (PEAD), incl. conexões e kit vedação 32 mm (1 1/4'') - (06.069.0100-0 EMOP) | E94: M | F94: 35 | G94: 0 | I94: -35 | J94: 0 | K94: 13.89 | L94: 0 | N94: 0 | P94: 0 | Q94: 0 | S94: 0 | T94: 0 | V94: 0 | W94: 0 | Y94: 0 | Z94: 0 | AB94: 0 | AC94: 0 | AE94: 0 | AF94: 0 | AH94: 0 | AI94: 0 | AK94: 0 | AL94: 0 | AN94: 0 | AO94: 0 | AQ94: 0 | AR94: 0 | AS94: 0 | AT94: 0 | AU94: 0 | AV94: 0 | AW94: 0 | AX94: 0 | AZ94: 0 | BA94: NÃO MEDIDO
A95: Planilhado | C95: 17083099U | D95: Caixa de passagem termo-plástica, para sobrepor, com tampa, grau de proteção: IP55, uso externo, tamanho 240x190x90mm (+/- 10%), com furação para tubos até 38 mm, fornecida com embutes | E95: UN | F95: 1 | G95: 0 | I95: -1 | J95: 0 | K95: 101.21 | L95: 0 | N95: 0 | P95: 0 | Q95: 0 | S95: 0 | T95: 0 | V95: 0 | W95: 0 | Y95: 0 | Z95: 0 | AB95: 0 | AC95: 0 | AE95: 0 | AF95: 0 | AH95: 0 | AI95: 0 | AK95: 0 | AL95: 0 | AN95: 0 | AO95: 0 | AQ95: 0 | AR95: 0 | AS95: 0 | AT95: 0 | AU95: 0 | AV95: 0 | AW95: 0 | AX95: 0 | AZ95: 0 | BA95: =IF(AZ95<>0,"MEDIDO","NÃO MEDIDO") -> NÃO MEDIDO
A96: Planilhado | C96: 1719322U | D96: Cabo telefônico tipo CCE-APL p/ 2 pares (Branco e Azul/ Branco e Laranja) 0,5 mm estanhado c/ certificação ANATEL | E96: M | F96: 70 | G96: 0 | I96: -70 | J96: 0 | K96: 4.1 | L96: 0 | N96: 0 | P96: 0 | Q96: 0 | S96: 0 | T96: 0 | V96: 0 | W96: 0 | Y96: 0 | Z96: 0 | AB96: 0 | AC96: 0 | AE96: 0 | AF96: 0 | AH96: 0 | AI96: 0 | AK96: 0 | AL96: 0 | AN96: 0 | AO96: 0 | AQ96: 0 | AR96: 0 | AS96: 0 | AT96: 0 | AU96: 0 | AV96: 0 | AW96: 0 | AX96: 0 | AZ96: 0 | BA96: =IF(AZ96<>0,"MEDIDO","NÃO MEDIDO") -> NÃO MEDIDO
A97: Planilhado | C97: 172295U | D97: Arame galvanizado N.16 BWG | E97: KG | F97: 0.65 | G97: 0 | I97: -0.65 | J97: 0 | K97: 38.22 | L97: 0 | N97: 0 | P97: 0 | Q97: 0 | S97: 0 | T97: 0 | V97: 0 | W97: 0 | Y97: 0 | Z97: 0 | AB97: 0 | AC97: 0 | AE97: 0 | AF97: 0 | AH97: 0 | AI97: 0 | AK97: 0 | AL97: 0 | AN97: 0 | AO97: 0 | AQ97: 0 | AR97: 0 | AS97: 0 | AT97: 0 | AU97: 0 | AV97: 0 | AW97: 0 | AX97: 0 | AZ97: 0 | BA97: NÃO MEDIDO
A98: Planilhado | C98: 19079994U | D98: Conector em alumínio p/ condulete múltiplo IP 54 de Ø 3/4'', c/ rosca BSP e parafuso - Forn. e Inst . | E98: UN | F98: 4 | G98: 0 | I98: -1 | J98: 3 | K98: 4.8 | L98: 14.4 | N98: 0 | P98: 0 | Q98: 0 | S98: 0 | T98: 0 | V98: 0 | W98: 0 | Y98: 0 | Z98: 0 | AB98: 0 | AC98: 0 | AE98: 0 | AF98: 0 | AG98: 3 | AH98: 14.4 | AI98: 0 | AK98: 0 | AL98: 0 | AN98: 0 | AO98: 0 | AQ98: 0 | AR98: 0 | AS98: 3 | AT98: 14.4 | AU98: 0 | AV98: 0 | AW98: 0 | AX98: 0 | AZ98: 0 | BA98: NÃO MEDIDO
A99: Família | C99: 20700 | D99: INSTALAÇÃO PROVISÓRIA - QUADROS PARCIAIS E DISTRIBUIÇÃO | G99: 0 | I99: 0 | J99: 0 | L99: 0 | N99: 0 | P99: 0 | Q99: 0 | S99: 0 | T99: 0 | V99: 0 | W99: 0 | Y99: 0 | Z99: 0 | AB99: 0 | AC99: 0 | AE99: 0 | AF99: 0 | AH99: 0 | AI99: 0 | AK99: 0 | AL99: 0 | AN99: 0 | AO99: 0 | AQ99: 0 | AR99: 0 | AS99: 0 | AT99: 0 | AU99: 0 | AV99: 0 | AW99: 0 | AX99: 0 | AZ99: 0 | BA99: =IF(COUNTIF(BA100:BA144,"MEDIDO")>0,"MEDIDO","NÃO MEDIDO") -> NÃO MEDIDO
A100: Planilhado | C100: 02633.8.2.04U | D100: Tampa de F.F.tipo pesada 400x400mm | E100: UN | F100: 5 | G100: 0 | I100: 0 | J100: 5 | K100: 192.3 | L100: 961.5 | N100: 0 | O100: 5 | P100: 961.5 | Q100: 0 | S100: 0 | T100: 0 | V100: 0 | W100: 0 | Y100: 0 | Z100: 0 | AB100: 0 | AC100: 0 | AE100: 0 | AF100: 0 | AH100: 0 | AI100: 0 | AK100: 0 | AL100: 0 | AN100: 0 | AO100: 0 | AQ100: 0 | AR100: 0 | AS100: 5 | AT100: 961.5 | AU100: 0 | AV100: 0 | AW100: 0 | AX100: 0 | AZ100: 0 | BA100: NÃO MEDIDO
A101: Planilhado | C101: 05060.8.11.0199U | D101: Tirante de aço 1/4" rosqueado, incl.fixações | E101: M | F101: 22 | G101: 0 | I101: -8.9 | J101: 13.1 | K101: 4.84 | L101: 63.4 | N101: 0 | P101: 0 | Q101: 0 | R101: 13.1 | S101: 63.4 | T101: 0 | V101: 0 | W101: 0 | Y101: 0 | Z101: 0 | AB101: 0 | AC101: 0 | AE101: 0 | AF101: 0 | AH101: 0 | AI101: 0 | AK101: 0 | AL101: 0 | AN101: 0 | AO101: 0 | AQ101: 0 | AR101: 0 | AS101: 13.1 | AT101: 63.4 | AU101: 0 | AV101: 0 | AW101: 0 | AX101: 0 | AZ101: 0 | BA101: NÃO MEDIDO
A102: Planilhado | C102: 13105.8.5.11U | D102: Grampo de aterramento em bronze (tp. braçadeira) p/ fix. cabo 16mm² a haste 3/4'' | E102: UN | F102: 1 | G102: 0 | I102: 0 | J102: 1 | K102: 54.5 | L102: 54.5 | N102: 0 | O102: 1 | P102: 54.5 | Q102: 0 | S102: 0 | T102: 0 | V102: 0 | W102: 0 | Y102: 0 | Z102: 0 | AB102: 0 | AC102: 0 | AE102: 0 | AF102: 0 | AH102: 0 | AI102: 0 | AK102: 0 | AL102: 0 | AN102: 0 | AO102: 0 | AQ102: 0 | AR102: 0 | AS102: 1 | AT102: 54.5 | AU102: 0 | AV102: 0 | AW102: 0 | AX102: 0 | AZ102: 0 | BA102: NÃO MEDIDO
A103: Planilhado | C103: 13105.8.8.05U | D103: Haste de aterramento 3/4"x2,40m | E103: UN | F103: 1 | G103: 0 | I103: 0 | J103: 1 | K103: 112.03 | L103: 112.03 | N103: 0 | O103: 1 | P103: 112.03 | Q103: 0 | S103: 0 | T103: 0 | V103: 0 | W103: 0 | Y103: 0 | Z103: 0 | AB103: 0 | AC103: 0 | AE103: 0 | AF103: 0 | AH103: 0 | AI103: 0 | AK103: 0 | AL103: 0 | AN103: 0 | AO103: 0 | AQ103: 0 | AR103: 0 | AS103: 1 | AT103: 112.03 | AU103: 0 | AV103: 0 | AW103: 0 | AX103: 0 | AZ103: 0 | BA103: NÃO MEDIDO
A104: Planilhado | C104: 13106.8.1.055U | D104: Terminal mecânico compressão em cobre p/cabo 10mm² | E104: UN | F104: 20 | G104: 0 | I104: -14 | J104: 6 | K104: 10.92 | L104: 65.52 | N104: 0 | P104: 0 | Q104: 0 | R104: 6 | S104: 65.52 | T104: 0 | V104: 0 | W104: 0 | Y104: 0 | Z104: 0 | AB104: 0 | AC104: 0 | AE104: 0 | AF104: 0 | AH104: 0 | AI104: 0 | AK104: 0 | AL104: 0 | AN104: 0 | AO104: 0 | AQ104: 0 | AR104: 0 | AS104: 6 | AT104: 65.52 | AU104: 0 | AV104: 0 | AW104: 0 | AX104: 0 | AZ104: 0 | BA104: NÃO MEDIDO
A105: Planilhado | C105: 13106.8.1.066U | D105: Terminal mecânico compressão em cobre p/cabo 16mm² | E105: UN | F105: 10 | G105: 0 | I105: -7 | J105: 3 | K105: 12.32 | L105: 36.96 | N105: 0 | O105: 3 | P105: 36.96 | Q105: 0 | S105: 0 | T105: 0 | V105: 0 | W105: 0 | Y105: 0 | Z105: 0 | AB105: 0 | AC105: 0 | AE105: 0 | AF105: 0 | AH105: 0 | AI105: 0 | AK105: 0 | AL105: 0 | AN105: 0 | AO105: 0 | AQ105: 0 | AR105: 0 | AS105: 3 | AT105: 36.96 | AU105: 0 | AV105: 0 | AW105: 0 | AX105: 0 | AZ105: 0 | BA105: NÃO MEDIDO
A106: Planilhado | C106: 13106.8.1.077U | D106: Terminal mecânico compressão em cobre p/cabo 25mm² | E106: UN | F106: 10 | G106: 0 | I106: -2 | J106: 8 | K106: 12.91 | L106: 103.28 | N106: 0 | O106: 8 | P106: 103.28 | Q106: 0 | S106: 0 | T106: 0 | V106: 0 | W106: 0 | Y106: 0 | Z106: 0 | AB106: 0 | AC106: 0 | AE106: 0 | AF106: 0 | AH106: 0 | AI106: 0 | AK106: 0 | AL106: 0 | AN106: 0 | AO106: 0 | AQ106: 0 | AR106: 0 | AS106: 8 | AT106: 103.28 | AU106: 0 | AV106: 0 | AW106: 0 | AX106: 0 | AZ106: 0 | BA106: NÃO MEDIDO
A107: Planilhado | C107: 15141.8.30.22U | D107: Braçadeira tipo "D" chapa galv.3/4" c/fixações | E107: UN | F107: 45 | G107: 0 | I107: 0 | J107: 45 | K107: 5 | L107: 225 | N107: 0 | P107: 0 | Q107: 0 | R107: 41 | S107: 205 | T107: 0 | V107: 0 | W107: 0 | Y107: 0 | Z107: 0 | AB107: 0 | AC107: 0 | AE107: 0 | AF107: 0 | AH107: 0 | AI107: 0 | AJ107: 4 | AK107: 20 | AL107: 0 | AN107: 0 | AO107: 0 | AQ107: 0 | AR107: 0 | AS107: 45 | AT107: 225 | AU107: 0 | AV107: 0 | AW107: 0 | AX107: 0 | AZ107: 0 | BA107: NÃO MEDIDO
A108: Planilhado | C108: 16.111.001501.SER | D108: Eletroduto PVC rígido roscável inclusive conexões Ø 25 mm 3/4" | E108: M | F108: 35 | G108: 42.75 | I108: 0 | J108: 77.75 | K108: 20.29 | L108: 1577.55 | N108: 0 | P108: 0 | Q108: 0 | R108: 35 | S108: 710.15 | T108: 0 | V108: 0 | W108: 0 | Y108: 0 | Z108: 0 | AA108: 42.75 | AB108: 867.4 | AC108: 0 | AE108: 0 | AF108: 0 | AH108: 0 | AI108: 0 | AK108: 0 | AL108: 0 | AN108: 0 | AO108: 0 | AQ108: 0 | AR108: 0 | AS108: 77.75 | AT108: 1577.55 | AU108: 0 | AV108: 0 | AW108: 0 | AX108: 0 | AZ108: 0 | BA108: NÃO MEDIDO
A109: Planilhado | C109: 16.111.001504.SER | D109: Eletroduto PVC rígido roscável inclusive conexões Ø 50 mm 1 1/2" | E109: M | F109: 60 | G109: 0 | I109: -60 | J109: 0 | K109: 41.08 | L109: 0 | N109: 0 | P109: 0 | Q109: 0 | S109: 0 | T109: 0 | V109: 0 | W109: 0 | Y109: 0 | Z109: 0 | AB109: 0 | AC109: 0 | AE109: 0 | AF109: 0 | AH109: 0 | AI109: 0 | AK109: 0 | AL109: 0 | AN109: 0 | AO109: 0 | AQ109: 0 | AR109: 0 | AS109: 0 | AT109: 0 | AU109: 0 | AV109: 0 | AW109: 0 | AX109: 0 | AZ109: 0 | BA109: NÃO MEDIDO
A110: Planilhado | C110: 16.113.001025.SER | D110: Suporte curto para luminária em chapa de aço galvanizado para perfilado | E110: UN | F110: 26 | G110: 0 | I110: -26 | J110: 0 | K110: 8.16 | L110: 0 | N110: 0 | P110: 0 | Q110: 0 | S110: 0 | T110: 0 | V110: 0 | W110: 0 | Y110: 0 | Z110: 0 | AB110: 0 | AC110: 0 | AE110: 0 | AF110: 0 | AH110: 0 | AI110: 0 | AK110: 0 | AL110: 0 | AN110: 0 | AO110: 0 | AQ110: 0 | AR110: 0 | AS110: 0 | AT110: 0 | AU110: 0 | AV110: 0 | AW110: 0 | AX110: 0 | AZ110: 0 | BA110: NÃO MEDIDO
A111: Planilhado | C111: 16.119.000301.SER | D111: Cabo isolado em EPR não halogenado 2,50 mm² - 0,6/1 KV - 90°C - flexível | E111: M | F111: 100 | G111: 18.5 | I111: 0 | J111: 118.5 | K111: 7.21 | L111: 854.39 | N111: 0 | P111: 0 | Q111: 0 | R111: 100 | S111: 721 | T111: 0 | V111: 0 | W111: 0 | Y111: 0 | Z111: 0 | AA111: 18.5 | AB111: 133.39 | AC111: 0 | AE111: 0 | AF111: 0 | AH111: 0 | AI111: 0 | AK111: 0 | AL111: 0 | AN111: 0 | AO111: 0 | AQ111: 0 | AR111: 0 | AS111: 118.5 | AT111: 854.39 | AU111: 0 | AV111: 0 | AW111: 0 | AX111: 0 | AZ111: 0 | BA111: NÃO MEDIDO
A112: Planilhado | C112: 16.119.000305.SER | D112: Cabo isolado em EPR não halogenado 16,00 mm² - 0,6/1 KV - 90°C - flexível | E112: M | F112: 100 | G112: 0 | I112: -61.5 | J112: 38.5 | K112: 22.01 | L112: 847.38 | N112: 0 | O112: 38.5 | P112: 847.39 | Q112: 0 | S112: 0 | T112: 0 | V112: 0 | W112: 0 | Y112: 0 | Z112: 0 | AB112: 0 | AC112: 0 | AE112: 0 | AF112: 0 | AH112: 0 | AI112: 0 | AK112: 0 | AL112: 0 | AN112: 0 | AO112: 0 | AQ112: =ROUND($AP112*$K112,2)-0.01 -> -0.01 | AR112: 0 | AS112: 38.5 | AT112: =SUMIF($O$10:$AR$11,"COM DESCONTO",O112:AR112) -> 847.38 | AU112: 0 | AV112: 0 | AW112: 0 | AX112: 0 | AZ112: 0 | BA112: NÃO MEDIDO
A113: Planilhado | C113: 16.119.000306.SER | D113: Cabo isolado em EPR não halogenado 25,00 mm² - 0,6/1 KV - 90°C - flexível | E113: M | F113: 200 | G113: 0 | I113: -46 | J113: 154 | K113: 31.43 | L113: 4840.22 | N113: 0 | O113: 154 | P113: 4840.22 | Q113: 0 | S113: 0 | T113: 0 | V113: 0 | W113: 0 | Y113: 0 | Z113: 0 | AB113: 0 | AC113: 0 | AE113: 0 | AF113: 0 | AH113: 0 | AI113: 0 | AK113: 0 | AL113: 0 | AN113: 0 | AO113: 0 | AQ113: 0 | AR113: 0 | AS113: 154 | AT113: 4840.22 | AU113: 0 | AV113: 0 | AW113: 0 | AX113: 0 | AZ113: 0 | BA113: NÃO MEDIDO
A114: Planilhado | C114: 16.121.000017.SER-U | D114: Interruptor, uma tecla bipolar paralela 10 A - 250 V | E114: UN | F114: 3 | G114: 3 | I114: 0 | J114: 6 | K114: 61.2 | L114: 367.2 | N114: 0 | P114: 0 | Q114: 0 | R114: 3 | S114: 183.6 | T114: 0 | V114: 0 | W114: 0 | Y114: 0 | Z114: 0 | AA114: 3 | AB114: 183.6 | AC114: 0 | AE114: 0 | AF114: 0 | AH114: 0 | AI114: 0 | AK114: 0 | AL114: 0 | AN114: 0 | AO114: 0 | AQ114: 0 | AR114: 0 | AS114: 6 | AT114: 367.2 | AU114: 0 | AV114: 0 | AW114: 0 | AX114: 0 | AZ114: 0 | BA114: NÃO MEDIDO
A115: Planilhado | C115: 16110.8.1.100U | D115: Terminal pré-isolado tipo pino - 2,5mm² | E115: UN | F115: 25 | G115: 0 | I115: -4 | J115: 21 | K115: 1.1 | L115: 23.1 | N115: 0 | P115: 0 | Q115: 0 | R115: 18 | S115: 19.8 | T115: 0 | V115: 0 | W115: 0 | Y115: 0 | Z115: 0 | AA115: 3 | AB115: 3.3 | AC115: 0 | AE115: 0 | AF115: 0 | AH115: 0 | AI115: 0 | AK115: 0 | AL115: 0 | AN115: 0 | AO115: 0 | AQ115: 0 | AR115: 0 | AS115: 21 | AT115: 23.1 | AU115: 0 | AV115: 0 | AW115: 0 | AX115: 0 | AZ115: 0 | BA115: NÃO MEDIDO
A116: Planilhado | C116: 16110.8.1.111U | D116: Terminal pré-isolado tipo pino - 4,0mm² | E116: UN | F116: 15 | G116: 0 | I116: -7 | J116: 8 | K116: 1.35 | L116: 10.8 | N116: 0 | P116: 0 | Q116: 0 | R116: 8 | S116: 10.8 | T116: 0 | V116: 0 | W116: 0 | Y116: 0 | Z116: 0 | AB116: 0 | AC116: 0 | AE116: 0 | AF116: 0 | AH116: 0 | AI116: 0 | AK116: 0 | AL116: 0 | AN116: 0 | AO116: 0 | AQ116: 0 | AR116: 0 | AS116: 8 | AT116: 10.8 | AU116: 0 | AV116: 0 | AW116: 0 | AX116: 0 | AZ116: 0 | BA116: NÃO MEDIDO
A117: Planilhado | C117: 16110.8.5.10U | D117: Emenda pré-isolada - 2,5mm² | E117: UN | F117: 25 | G117: 0 | I117: -25 | J117: 0 | K117: 1.06 | L117: 0 | N117: 0 | P117: 0 | Q117: 0 | S117: 0 | T117: 0 | V117: 0 | W117: 0 | Y117: 0 | Z117: 0 | AB117: 0 | AC117: 0 | AE117: 0 | AF117: 0 | AH117: 0 | AI117: 0 | AK117: 0 | AL117: 0 | AN117: 0 | AO117: 0 | AQ117: 0 | AR117: 0 | AS117: 0 | AT117: 0 | AU117: 0 | AV117: 0 | AW117: 0 | AX117: 0 | AZ117: 0 | BA117: NÃO MEDIDO
A118: Planilhado | C118: 16110.8.5.11U | D118: Emenda pré-isolada - 4,0mm² | E118: UN | F118: 15 | G118: 0 | I118: -15 | J118: 0 | K118: 1.46 | L118: 0 | N118: 0 | P118: 0 | Q118: 0 | S118: 0 | T118: 0 | V118: 0 | W118: 0 | Y118: 0 | Z118: 0 | AB118: 0 | AC118: 0 | AE118: 0 | AF118: 0 | AH118: 0 | AI118: 0 | AK118: 0 | AL118: 0 | AN118: 0 | AO118: 0 | AQ118: 0 | AR118: 0 | AS118: 0 | AT118: 0 | AU118: 0 | AV118: 0 | AW118: 0 | AX118: 0 | AZ118: 0 | BA118: NÃO MEDIDO
A119: Planilhado | C119: 16120.8.11.088U | D119: Cabo flexível isolado PVC 300/500V tipo PP 3X2,5mm² | E119: M | F119: 26 | G119: 0 | I119: -6.5 | J119: 19.5 | K119: 7.76 | L119: 151.32 | N119: 0 | P119: 0 | Q119: 0 | R119: 19.5 | S119: 151.32 | T119: 0 | V119: 0 | W119: 0 | Y119: 0 | Z119: 0 | AB119: 0 | AC119: 0 | AE119: 0 | AF119: 0 | AH119: 0 | AI119: 0 | AK119: 0 | AL119: 0 | AN119: 0 | AO119: 0 | AQ119: 0 | AR119: 0 | AS119: 19.5 | AT119: 151.32 | AU119: 0 | AV119: 0 | AW119: 0 | AX119: 0 | AZ119: 0 | BA119: NÃO MEDIDO
A120: Planilhado | C120: 16120.8.16.90U | D120: Cabo com isolação em dupla camada de poliolefínico não halogenado, baixa emissão de fumaça e gases, não propagação e auto extinção do fogo - seção 2,5mm² - 450/750 V de acordo com a norma NBR-13428 | E120: M | F120: 300 | G120: 92.64 | I120: 0 | J120: 392.64 | K120: 5.89 | L120: 2312.65 | N120: 0 | P120: 0 | Q120: 0 | R120: 300 | S120: 1767 | T120: 0 | V120: 0 | W120: 0 | Y120: 0 | Z120: 0 | AA120: 92.64 | AB120: 545.65 | AC120: 0 | AE120: 0 | AF120: 0 | AH120: 0 | AI120: 0 | AK120: 0 | AL120: 0 | AN120: 0 | AO120: 0 | AQ120: 0 | AR120: 0 | AS120: 392.64 | AT120: 2312.65 | AU120: 0 | AV120: 0 | AW120: 0 | AX120: 0 | AZ120: 0 | BA120: NÃO MEDIDO
A121: Planilhado | C121: 16120.8.16.910U | D121: Cabo com isolação em dupla camada de poliolefínico não halogenado, baixa emissão de fumaça e gases, não propagação e auto extinção do fogo - seção 4,0mm² - 0,75/1kV de acordo com a norma NBR-13428 | E121: M | F121: 350 | G121: 0 | I121: -161.2 | J121: 188.8 | K121: 7.79 | L121: 1470.75 | N121: 0 | P121: 0 | Q121: 0 | R121: 188.8 | S121: 1470.75 | T121: 0 | V121: 0 | W121: 0 | Y121: 0 | Z121: 0 | AB121: 0 | AC121: 0 | AE121: 0 | AF121: 0 | AH121: 0 | AI121: 0 | AK121: 0 | AL121: 0 | AN121: 0 | AO121: 0 | AQ121: 0 | AR121: 0 | AS121: 188.8 | AT121: 1470.75 | AU121: 0 | AV121: 0 | AW121: 0 | AX121: 0 | AZ121: 0 | BA121: NÃO MEDIDO
A122: Planilhado | C122: 16120.8.16.940U | D122: Cabo com isolação em dupla camada de poliolefínico não halogenado, baixa emissão de fumaça e gases, não propagação e auto extinção do fogo - seção 10,0mm² - 0,75/1kV de acordo com a norma NBR-13428 | E122: M | F122: 230 | G122: 0 | I122: -163.22 | J122: 66.78 | K122: 12.79 | L122: 854.12 | N122: 0 | O122: 66.78 | P122: 854.12 | Q122: 0 | S122: 0 | T122: 0 | V122: 0 | W122: 0 | Y122: 0 | Z122: 0 | AB122: 0 | AC122: 0 | AE122: 0 | AF122: 0 | AH122: 0 | AI122: 0 | AK122: 0 | AL122: 0 | AN122: 0 | AO122: 0 | AQ122: 0 | AR122: 0 | AS122: 66.78 | AT122: 854.12 | AU122: 0 | AV122: 0 | AW122: 0 | AX122: 0 | AZ122: 0 | BA122: NÃO MEDIDO
A123: Planilhado | C123: 16120.8.7.077U | D123: Prensa cabos em termoplástico para cabo elétrico entre 6,0mm² e 12,0mm² | E123: UN | F123: 24 | G123: 0 | I123: -2 | J123: 22 | K123: 5.01 | L123: 110.22 | N123: 0 | P123: 0 | Q123: 0 | R123: 13 | S123: 65.13 | T123: 0 | V123: 0 | W123: 0 | Y123: 0 | Z123: 0 | AB123: 0 | AC123: 0 | AE123: 0 | AF123: 0 | AH123: 0 | AI123: 0 | AJ123: 9 | AK123: 45.09 | AL123: 0 | AN123: 0 | AO123: 0 | AQ123: 0 | AR123: 0 | AS123: 22 | AT123: 110.22 | AU123: 0 | AV123: 0 | AW123: 0 | AX123: 0 | AZ123: 0 | BA123: NÃO MEDIDO
A124: Planilhado | C124: 16132.8.7.064U | D124: Tampa metálica p/ condulete 3/4" p/tomada | E124: UN | F124: 10 | G124: 4 | I124: 0 | J124: 14 | K124: 5.42 | L124: 75.88 | N124: 0 | P124: 0 | Q124: 0 | R124: 10 | S124: 54.2 | T124: 0 | V124: 0 | W124: 0 | Y124: 0 | Z124: 0 | AA124: 4 | AB124: 21.68 | AC124: 0 | AE124: 0 | AF124: 0 | AH124: 0 | AI124: 0 | AK124: 0 | AL124: 0 | AN124: 0 | AO124: 0 | AQ124: 0 | AR124: 0 | AS124: 14 | AT124: 75.88 | AU124: 0 | AV124: 0 | AW124: 0 | AX124: 0 | AZ124: 0 | BA124: NÃO MEDIDO
A125: Planilhado | C125: 16132.8.7.066U | D125: Tampa metálica p/ condulete 3/4", c/ 2 seções | E125: UN | F125: 3 | G125: 3 | I125: 0 | J125: 6 | K125: 5.52 | L125: 33.12 | N125: 0 | P125: 0 | Q125: 0 | R125: 3 | S125: 16.56 | T125: 0 | V125: 0 | W125: 0 | Y125: 0 | Z125: 0 | AA125: 3 | AB125: 16.56 | AC125: 0 | AE125: 0 | AF125: 0 | AH125: 0 | AI125: 0 | AK125: 0 | AL125: 0 | AN125: 0 | AO125: 0 | AQ125: 0 | AR125: 0 | AS125: 6 | AT125: 33.12 | AU125: 0 | AV125: 0 | AW125: 0 | AX125: 0 | AZ125: 0 | BA125: NÃO MEDIDO
A126: Planilhado | C126: 16135.8.1.21U | D126: Condulete de alumínio multi-uso tipo ''X'' 3/4" c/ tampa cega IP 54 - c/ mínimo 2 tampões de vedação - Fornec. e Inst | E126: UN | F126: 35 | G126: 16 | I126: 0 | J126: 51 | K126: 64.29 | L126: 3278.79 | N126: 0 | P126: 0 | Q126: 0 | R126: 35 | S126: 2250.15 | T126: 0 | V126: 0 | W126: 0 | Y126: 0 | Z126: 0 | AA126: 16 | AB126: 1028.64 | AC126: 0 | AE126: 0 | AF126: 0 | AH126: 0 | AI126: 0 | AK126: 0 | AL126: 0 | AN126: 0 | AO126: 0 | AQ126: 0 | AR126: 0 | AS126: 51 | AT126: 3278.79 | AU126: 0 | AV126: 0 | AW126: 0 | AX126: 0 | AZ126: 0 | BA126: NÃO MEDIDO
A127: Planilhado | C127: 16142.8.8.044U | D127: Chave guarda motor trifásico 5CV/220V c/chave magnética - fornecimento e instalação (83491-SINAPI) | E127: UN | F127: 1 | G127: 0 | I127: 0 | J127: 1 | K127: 400.33 | L127: 400.33 | N127: 0 | P127: 0 | Q127: 0 | R127: 1 | S127: 400.33 | T127: 0 | V127: 0 | W127: 0 | Y127: 0 | Z127: 0 | AB127: 0 | AC127: 0 | AE127: 0 | AF127: 0 | AH127: 0 | AI127: 0 | AK127: 0 | AL127: 0 | AN127: 0 | AO127: 0 | AQ127: 0 | AR127: 0 | AS127: 1 | AT127: 400.33 | AU127: 0 | AV127: 0 | AW127: 0 | AX127: 0 | AZ127: 0 | BA127: NÃO MEDIDO
A128: Planilhado | C128: 16143.8.6.15U | D128: Tomada 2P+T 10A-250V p/ condulete/cx. passagem (4x2'' ou 4x4''), preta/branca, conf.padrão brasileiro | E128: UN | F128: 10 | G128: 1 | I128: 0 | J128: 11 | K128: 23.25 | L128: 255.75 | N128: 0 | P128: 0 | Q128: 0 | R128: 10 | S128: 232.5 | T128: 0 | V128: 0 | W128: 0 | Y128: 0 | Z128: 0 | AA128: 1 | AB128: 23.25 | AC128: 0 | AE128: 0 | AF128: 0 | AH128: 0 | AI128: 0 | AK128: 0 | AL128: 0 | AN128: 0 | AO128: 0 | AQ128: 0 | AR128: 0 | AS128: 11 | AT128: 255.75 | AU128: 0 | AV128: 0 | AW128: 0 | AX128: 0 | AZ128: 0 | BA128: NÃO MEDIDO
A129: Planilhado | C129: 16300.8.1.10U | D129: Caixa de inspeção PVC p/aterramento Ø 300mm e profund.min.300mm c/tampa F.F.c/inscrição | E129: UN | F129: 1 | G129: 0 | I129: 0 | J129: 1 | K129: 200.24 | L129: 200.24 | N129: 0 | O129: 1 | P129: 200.24 | Q129: 0 | S129: 0 | T129: 0 | V129: 0 | W129: 0 | Y129: 0 | Z129: 0 | AB129: 0 | AC129: 0 | AE129: 0 | AF129: 0 | AH129: 0 | AI129: 0 | AK129: 0 | AL129: 0 | AN129: 0 | AO129: 0 | AQ129: 0 | AR129: 0 | AS129: 1 | AT129: 200.24 | AU129: 0 | AV129: 0 | AW129: 0 | AX129: 0 | AZ129: 0 | BA129: NÃO MEDIDO
A130: Planilhado | C130: 16510.8.5.940U | D130: Luminária de sobrepor 2x18W c/ lampadas LEDTUB 18W / 220V, driver incorporado na lampada, corpo/refletor em chapa de aço tratada e pintada na cor branca | E130: UN | F130: 13 | G130: 0 | I130: 0 | J130: 13 | K130: 441.27 | L130: 5736.51 | N130: 0 | P130: 0 | Q130: 0 | R130: 13 | S130: 5736.51 | T130: 0 | V130: 0 | W130: 0 | Y130: 0 | Z130: 0 | AB130: 0 | AC130: 0 | AE130: 0 | AF130: 0 | AH130: 0 | AI130: 0 | AK130: 0 | AL130: 0 | AN130: 0 | AO130: 0 | AQ130: 0 | AR130: 0 | AS130: 13 | AT130: 5736.51 | AU130: 0 | AV130: 0 | AW130: 0 | AX130: 0 | AZ130: 0 | BA130: NÃO MEDIDO
A131: Planilhado | C131: 16973.8.1.11U | D131: Duto corrugado helicoidal na cor preta, de polietileno de alta densidade (PEAD), incl.conexões e kit vedação 38mm (1 1/2")(06.069.0105-0 EMOP) | E131: M | F131: 50 | G131: 29.54 | I131: 0 | J131: 79.54 | K131: 15.36 | L131: 1221.73 | N131: 0 | O131: 50 | P131: 768 | Q131: 0 | S131: 0 | T131: 0 | V131: 0 | W131: 0 | Y131: 0 | Z131: 0 | AA131: 29.54 | AB131: 453.73 | AC131: 0 | AE131: 0 | AF131: 0 | AH131: 0 | AI131: 0 | AK131: 0 | AL131: 0 | AN131: 0 | AO131: 0 | AQ131: 0 | AR131: 0 | AS131: 79.54 | AT131: 1221.73 | AU131: 0 | AV131: 0 | AW131: 0 | AX131: 0 | AZ131: 0 | BA131: NÃO MEDIDO
A132: Planilhado | C132: 1708422U | D132: Anilha plástica de identificação em PVC (letras A, V, P, R, T, C e X) para cabos até 6,0mm² | E132: UN | F132: 30 | G132: 0 | I132: 0 | J132: 30 | K132: 1.05 | L132: 31.5 | N132: 0 | P132: 0 | Q132: 0 | R132: 30 | S132: 31.5 | T132: 0 | V132: 0 | W132: 0 | Y132: 0 | Z132: 0 | AB132: 0 | AC132: 0 | AE132: 0 | AF132: 0 | AH132: 0 | AI132: 0 | AK132: 0 | AL132: 0 | AN132: 0 | AO132: 0 | AQ132: 0 | AR132: 0 | AS132: 30 | AT132: 31.5 | AU132: 0 | AV132: 0 | AW132: 0 | AX132: 0 | AZ132: 0 | BA132: NÃO MEDIDO
A133: Planilhado | C133: 1708423U | D133: Anilha plástica de identificação em PVC (letras A, V, P, R, T, C e X) para cabos 10,0mm² até 16,0mm² | E133: UN | F133: 40 | G133: 0 | I133: -34 | J133: 6 | K133: 1.08 | L133: 6.48 | N133: 0 | P133: 0 | Q133: 0 | R133: 6 | S133: 6.48 | T133: 0 | V133: 0 | W133: 0 | Y133: 0 | Z133: 0 | AB133: 0 | AC133: 0 | AE133: 0 | AF133: 0 | AH133: 0 | AI133: 0 | AK133: 0 | AL133: 0 | AN133: 0 | AO133: 0 | AQ133: 0 | AR133: 0 | AS133: 6 | AT133: 6.48 | AU133: 0 | AV133: 0 | AW133: 0 | AX133: 0 | AZ133: 0 | BA133: NÃO MEDIDO
A134: Planilhado | C134: 170899866U | D134: Ligação de cabos (4x#25mm2(3F+N))+1(1x#16mm2(T)), c/fornecimento e instalação de disjuntor de 80A 10KA no QGBT, no mesmo padrão dos existentes, p/alimentação do QDLT-1.BAR , conforme diagrama | E134: UN | F134: 1 | G134: 0 | I134: 0 | J134: 1 | K134: 307.83 | L134: 307.83 | N134: 0 | O134: 1 | P134: 307.83 | Q134: 0 | S134: 0 | T134: 0 | V134: 0 | W134: 0 | Y134: 0 | Z134: 0 | AB134: 0 | AC134: 0 | AE134: 0 | AF134: 0 | AH134: 0 | AI134: 0 | AK134: 0 | AL134: 0 | AN134: 0 | AO134: 0 | AQ134: 0 | AR134: 0 | AS134: 1 | AT134: 307.83 | AU134: 0 | AV134: 0 | AW134: 0 | AX134: 0 | AZ134: 0 | BA134: NÃO MEDIDO
A135: Planilhado | C135: 17089986U | D135: Painel de distribuição de baixa tensão, Padrão TTA (NBR.IEC 60439-1), forma 1, QDLT-BAR1 (220/127V), conforme diagrama e especificação técnica. Totalmente montado e pronto para funcionar - Instalação | E135: UN | F135: 1 | G135: 0 | I135: 0 | J135: 1 | K135: 224.81 | L135: 224.81 | N135: 0 | P135: 0 | Q135: 0 | R135: 1 | S135: 224.81 | T135: 0 | V135: 0 | W135: 0 | Y135: 0 | Z135: 0 | AB135: 0 | AC135: 0 | AE135: 0 | AF135: 0 | AH135: 0 | AI135: 0 | AK135: 0 | AL135: 0 | AN135: 0 | AO135: 0 | AQ135: 0 | AR135: 0 | AS135: 1 | AT135: 224.81 | AU135: 0 | AV135: 0 | AW135: 0 | AX135: 0 | AZ135: 0 | BA135: NÃO MEDIDO
A136: Planilhado | C136: 17113499U | D136: Caixa de passagem em bloco de concreto com enchimento, 400x400x400mm | E136: UN | F136: 5 | G136: 0 | I136: 0 | J136: 5 | K136: 136.07 | L136: 680.35 | N136: 0 | O136: 5 | P136: 680.35 | Q136: 0 | S136: 0 | T136: 0 | V136: 0 | W136: 0 | Y136: 0 | Z136: 0 | AB136: 0 | AC136: 0 | AE136: 0 | AF136: 0 | AH136: 0 | AI136: 0 | AK136: 0 | AL136: 0 | AN136: 0 | AO136: 0 | AQ136: 0 | AR136: 0 | AS136: 5 | AT136: 680.35 | AU136: 0 | AV136: 0 | AW136: 0 | AX136: 0 | AZ136: 0 | BA136: NÃO MEDIDO
A137: Planilhado | C137: 1712522U | D137: Etiqueta para identificação, interior/ exterior, nas dimensões minímas de 40x10mm, em vinil interno/externo, adesivo permanente, resistente a líquidos e poeira/sujeira impressa c/ fundo branco e letras na cor preta | E137: UN | F137: 20 | G137: 0 | I137: 0 | J137: 20 | K137: 0.43 | L137: 8.6 | N137: 0 | P137: 0 | Q137: 0 | R137: 17 | S137: 7.31 | T137: 0 | V137: 0 | W137: 0 | Y137: 0 | Z137: 0 | AB137: 0 | AC137: 0 | AE137: 0 | AF137: 0 | AH137: 0 | AI137: 0 | AJ137: 3 | AK137: 1.29 | AL137: 0 | AN137: 0 | AO137: 0 | AQ137: 0 | AR137: 0 | AS137: 20 | AT137: 8.6 | AU137: 0 | AV137: 0 | AW137: 0 | AX137: 0 | AZ137: 0 | BA137: NÃO MEDIDO
A138: Planilhado | C138: 171360U | D138: Plug corpo monobloco termo-plástico 10A 250V-2P+T em linha pinos cilíndricos 4,0mm - macho | E138: UN | F138: 13 | G138: 0 | I138: 0 | J138: 13 | K138: 24.24 | L138: 315.12 | N138: 0 | P138: 0 | Q138: 0 | R138: 13 | S138: 315.12 | T138: 0 | V138: 0 | W138: 0 | Y138: 0 | Z138: 0 | AB138: 0 | AC138: 0 | AE138: 0 | AF138: 0 | AH138: 0 | AI138: 0 | AK138: 0 | AL138: 0 | AN138: 0 | AO138: 0 | AQ138: 0 | AR138: 0 | AS138: 13 | AT138: 315.12 | AU138: 0 | AV138: 0 | AW138: 0 | AX138: 0 | AZ138: 0 | BA138: NÃO MEDIDO
A139: Planilhado | C139: 171361U | D139: Plug corpo monobloco termo-plástico 10A 250V-2P+T em linha pinos cilíndricos 4mm - fêmea | E139: UN | F139: 13 | G139: 0 | I139: 0 | J139: 13 | K139: 15.66 | L139: 203.58 | N139: 0 | P139: 0 | Q139: 0 | R139: 13 | S139: 203.58 | T139: 0 | V139: 0 | W139: 0 | Y139: 0 | Z139: 0 | AB139: 0 | AC139: 0 | AE139: 0 | AF139: 0 | AH139: 0 | AI139: 0 | AK139: 0 | AL139: 0 | AN139: 0 | AO139: 0 | AQ139: 0 | AR139: 0 | AS139: 13 | AT139: 203.58 | AU139: 0 | AV139: 0 | AW139: 0 | AX139: 0 | AZ139: 0 | BA139: NÃO MEDIDO
A140: Planilhado | C140: 17150445U | D140: Anilha plástica de identificação em PVC (0 a 9) para cabos até 6,0mm² | E140: UN | F140: 30 | G140: 0 | I140: 0 | J140: 30 | K140: 1.01 | L140: 30.3 | N140: 0 | P140: 0 | Q140: 0 | R140: 30 | S140: 30.3 | T140: 0 | V140: 0 | W140: 0 | Y140: 0 | Z140: 0 | AB140: 0 | AC140: 0 | AE140: 0 | AF140: 0 | AH140: 0 | AI140: 0 | AK140: 0 | AL140: 0 | AN140: 0 | AO140: 0 | AQ140: 0 | AR140: 0 | AS140: 30 | AT140: 30.3 | AU140: 0 | AV140: 0 | AW140: 0 | AX140: 0 | AZ140: 0 | BA140: =IF(AZ140<>0,"MEDIDO","NÃO MEDIDO") -> NÃO MEDIDO
A141: Planilhado | C141: 17150446U | D141: Anilha plástica de identificação em PVC (0 a 9) para cabos 10,0mm² até 16,0mm² | E141: UN | F141: 40 | G141: 0 | I141: -34 | J141: 6 | K141: 1.07 | L141: 6.42 | N141: 0 | P141: 0 | Q141: 0 | R141: 6 | S141: 6.42 | T141: 0 | V141: 0 | W141: 0 | Y141: 0 | Z141: 0 | AB141: 0 | AC141: 0 | AE141: 0 | AF141: 0 | AH141: 0 | AI141: 0 | AK141: 0 | AL141: 0 | AN141: 0 | AO141: 0 | AQ141: 0 | AR141: 0 | AS141: 6 | AT141: 6.42 | AU141: 0 | AV141: 0 | AW141: 0 | AX141: 0 | AZ141: 0 | BA141: =IF(AZ141<>0,"MEDIDO","NÃO MEDIDO") -> NÃO MEDIDO
A142: Planilhado | C142: 17311899U | D142: Suspensão p/tirante incl. fixações | E142: UN | F142: 14 | G142: 0 | I142: -14 | J142: 0 | K142: 9.49 | L142: 0 | N142: 0 | P142: 0 | Q142: 0 | S142: 0 | T142: 0 | V142: 0 | W142: 0 | Y142: 0 | Z142: 0 | AB142: 0 | AC142: 0 | AE142: 0 | AF142: 0 | AH142: 0 | AI142: 0 | AK142: 0 | AL142: 0 | AN142: 0 | AO142: 0 | AQ142: 0 | AR142: 0 | AS142: 0 | AT142: 0 | AU142: 0 | AV142: 0 | AW142: 0 | AX142: 0 | AZ142: =INDEX($O$10:$AR$496,ROW()-8,MATCH($AZ$10,$O$10:$AR$10,0)) -> 0 | BA142: NÃO MEDIDO
A143: Planilhado | C143: 19079994U | D143: Conector em alumínio p/ condulete múltiplo IP 54 de Ø 3/4'', c/ rosca BSP e parafuso - Forn. e Inst . | E143: UN | F143: 100 | G143: 0 | I143: -49 | J143: 51 | K143: 4.8 | L143: 244.8 | N143: 0 | P143: 0 | Q143: 0 | R143: 51 | S143: 244.8 | T143: 0 | V143: 0 | W143: 0 | Y143: 0 | Z143: 0 | AB143: 0 | AC143: 0 | AE143: 0 | AF143: 0 | AH143: 0 | AI143: 0 | AK143: 0 | AL143: 0 | AN143: 0 | AO143: 0 | AQ143: 0 | AR143: 0 | AS143: 51 | AT143: 244.8 | AU143: 0 | AV143: 0 | AW143: 0 | AX143: 0 | AZ143: 0 | BA143: NÃO MEDIDO
A144: Planilhado | C144: 17089986E | D144: Painel de distribuição de baixa tensão, Padrão TTA (NBR.IEC 60439-1), forma 1, QDLT-BAR1 (220/127V), conforme diagrama e especificação técnica. Totalmente montado e pronto para funcionar - Fornecimento | E144: UN | F144: 1 | G144: 0 | I144: 0 | J144: 1 | K144: 4246.5 | L144: 4246.5 | N144: 0 | O144: 1 | P144: 4246.5 | Q144: 0 | S144: 0 | T144: 0 | V144: 0 | W144: 0 | Y144: 0 | Z144: 0 | AB144: 0 | AC144: 0 | AE144: 0 | AF144: 0 | AH144: 0 | AI144: 0 | AK144: 0 | AL144: 0 | AN144: 0 | AO144: 0 | AQ144: 0 | AR144: 0 | AS144: 1 | AT144: 4246.5 | AU144: 0 | AV144: 0 | AW144: 0 | AX144: 0 | AZ144: 0 | BA144: NÃO MEDIDO
A145: Família | C145: 20900 | D145: TAPUMES E ALOJAMENTOS | G145: 0 | I145: 0 | J145: =F145+G145+H145+I145 -> 0 | L145: =ROUND((F145*$K145),2)+ROUND((G145*$K145),2)+ROUND((H145*$K145),2)+ROUND((I145*$K145),2) -> 0 | N145: =ROUND((F145*$M145),2)+ROUND((G145*$M145),2)+ROUND((H145*$M145),2)+ROUND((I145*$M145),2) -> 0 | P145: 0 | Q145: 0 | S145: 0 | T145: 0 | V145: 0 | W145: 0 | Y145: 0 | Z145: 0 | AB145: 0 | AC145: 0 | AE145: 0 | AF145: 0 | AH145: 0 | AI145: 0 | AK145: 0 | AL145: 0 | AN145: =ROUND($AM145*$K145,2) -> 0 | AO145: 0 | AQ145: =ROUND($AP145*$K145,2) -> 0 | AR145: =ROUND($AP145*$M145,2) -> 0 | AS145: =SUMIF($O$9:$AR$9,"QUANTIDADE",O145:AR145) -> 0 | AT145: =SUMIF($O$10:$AR$11,"COM DESCONTO",O145:AR145) -> 0 | AU145: =SUMIF($O$10:$AR$11,"SEM DESCONTO",O145:AR145) -> 0 | AV145: =J145-AS145 -> 0 | AW145: =L145-AT145 -> 0 | AX145: =N145-AU145 -> 0 | AZ145: 0 | BA145: NÃO MEDIDO
A146: Planilhado | C146: 01520.8.2.101U | D146: Abrigo provisório metálico tipo contêiner (6,00x2,40x2,55m) constituído por um módulo tipo escritório c/ WC e almoxarifado - aluguel mensal | E146: UNXMES | F146: 6 | G146: -6 | I146: 0 | J146: 0 | K146: 953.96 | L146: 0 | N146: 0 | P146: 0 | Q146: 0 | S146: 0 | T146: 0 | V146: 0 | W146: 0 | Y146: 0 | Z146: 0 | AB146: 0 | AC146: 0 | AE146: 0 | AF146: 0 | AH146: 0 | AI146: 0 | AK146: 0 | AL146: 0 | AN146: 0 | AO146: =ROUND($AM146*$M146,2) -> 0 | AQ146: 0 | AR146: 0 | AS146: 0 | AT146: 0 | AU146: 0 | AV146: 0 | AW146: 0 | AX146: 0 | AZ146: 0 | BA146: NÃO MEDIDO
A147: Planilhado | C147: 01520.8.2.129U | D147: Abrigo Provisório metálico tipo contêiner (6,00x2,40x2,55m) constituído por um módulo tipo vestiário c/ WC (2 chuveiros, 2 vasos, 2 lavat. e 1 mictório) - aluguel mensal | E147: UNXMES | F147: 6 | G147: 0 | H147: 3 | I147: 0 | J147: 9 | K147: 1052.64 | L147: 9473.76 | N147: 0 | O147: 1 | P147: 1052.64 | Q147: 0 | R147: 1 | S147: 1052.64 | T147: 0 | U147: 1 | V147: 1052.64 | W147: 0 | X147: 1 | Y147: 1052.64 | Z147: 0 | AA147: 1 | AB147: 1052.64 | AC147: 0 | AD147: 1 | AE147: 1052.64 | AF147: 0 | AG147: 1 | AH147: 1052.64 | AI147: 0 | AJ147: 1 | AK147: 1052.64 | AL147: 0 | AM147: 1 | AN147: 1052.64 | AO147: 0 | AQ147: 0 | AR147: 0 | AS147: 9 | AT147: 9473.76 | AU147: 0 | AV147: 0 | AW147: 0 | AX147: 0 | AZ147: 1 | BA147: MEDIDO
A148: Planilhado | C148: 01520.8.2.3U | D148: Carga e descarga de contêiner (04.013.0015-0 EMOP) | E148: UN | F148: 4 | G148: -2 | I148: 0 | J148: 2 | K148: 71.04 | L148: 142.08 | N148: 0 | O148: 1 | P148: 71.04 | Q148: 0 | S148: 0 | T148: 0 | V148: 0 | W148: 0 | Y148: 0 | Z148: 0 | AB148: 0 | AC148: 0 | AE148: 0 | AF148: 0 | AH148: 0 | AI148: 0 | AK148: 0 | AL148: 0 | AN148: 0 | AO148: 0 | AP148: 1 | AQ148: 71.04 | AR148: 0 | AS148: 2 | AT148: 142.08 | AU148: 0 | AV148: 0 | AW148: 0 | AX148: 0 | AZ148: 117.7 | BA148: MEDIDO
A149: Planilhado | C149: 01520.8.2.7U | D149: Transporte de contêiner (04.005.0300-0 EMOP) | E149: UNXKM | F149: 60 | G149: 85.4 | I149: 0 | J149: 145.4 | K149: 27.71 | L149: 4029.03 | N149: 0 | O149: 15 | P149: 415.65 | Q149: 0 | S149: 0 | T149: 0 | V149: 0 | W149: 0 | Y149: 0 | Z149: 0 | AA149: 12.7 | AB149: 351.92 | AC149: 0 | AE149: 0 | AF149: 0 | AH149: 0 | AI149: 0 | AK149: 0 | AL149: 0 | AN149: 0 | AO149: 0 | AP149: 117.7 | AQ149: =ROUND($AP149*$K149,2)-0.01 -> 3261.46 | AR149: 0 | AS149: 145.4 | AT149: =SUMIF($O$10:$AR$11,"COM DESCONTO",O149:AR149) -> 4029.03 | AU149: 0 | AV149: 0 | AW149: 0 | AX149: 0 | AZ149: 0 | BA149: NÃO MEDIDO
A150: Planilhado | C150: 02.101.0000200.SER-U | D150: Tapume de proteção com telha trapezoidal em aço galvanizado # 0,43 mm em estrutura de madeira | E150: M2 | F150: 202.3 | G150: 0 | I150: 0 | J150: 202.3 | K150: 63.25 | L150: 12795.48 | N150: 0 | O150: 176.49 | P150: =ROUND($O150*$K150,2) -> 11162.99 | Q150: =ROUND($O150*$M150,2) -> 0 | S150: =ROUND($R150*$K150,2) -> 0 | T150: =ROUND($R150*$M150,2) -> 0 | V150: 0 | W150: 0 | Y150: 0 | Z150: 0 | AB150: 0 | AC150: 0 | AE150: 0 | AF150: 0 | AH150: 0 | AI150: 0 | AK150: 0 | AL150: 0 | AN150: 0 | AO150: 0 | AQ150: 0 | AR150: 0 | AS150: 176.49 | AT150: 11162.99 | AU150: 0 | AV150: 25.81 | AW150: 1632.49 | AX150: 0 | AZ150: 0 | BA150: NÃO MEDIDO
A151: Planilhado | C151: 02.101.0000301.SER-U | D151: Abrigo provisório de madeira para refeitório e/ou carpintaria e/ou central de armadura | E151: M2 | F151: 71.6 | G151: 0 | I151: 0 | J151: 71.6 | K151: 411.55 | L151: 29466.98 | N151: 0 | O151: 66.84 | P151: 27508 | Q151: 0 | S151: 0 | T151: 0 | V151: 0 | W151: 0 | Y151: 0 | Z151: 0 | AB151: 0 | AC151: 0 | AE151: 0 | AF151: 0 | AH151: 0 | AI151: 0 | AK151: 0 | AL151: 0 | AN151: 0 | AO151: 0 | AQ151: 0 | AR151: 0 | AS151: 66.84 | AT151: 27508 | AU151: 0 | AV151: 4.76 | AW151: 1958.98 | AX151: 0 | AZ151: 0 | BA151: NÃO MEDIDO
A152: Planilhado | C152: 02.101.000100.SER | D152: Passadiços de madeira para pedestres, com tábua | E152: M2 | F152: 13.6 | G152: 0 | I152: 0 | J152: 13.6 | K152: 106.1 | L152: 1442.96 | N152: 0 | P152: 0 | Q152: 0 | S152: 0 | T152: 0 | V152: 0 | W152: 0 | Y152: 0 | Z152: 0 | AB152: 0 | AC152: 0 | AE152: 0 | AF152: 0 | AH152: 0 | AI152: 0 | AK152: 0 | AL152: 0 | AN152: 0 | AO152: 0 | AQ152: 0 | AR152: 0 | AS152: 0 | AT152: 0 | AU152: 0 | AV152: 13.6 | AW152: 1442.96 | AX152: 0 | AZ152: 0 | BA152: NÃO MEDIDO
A153: Planilhado | C153: 02825.8.12.499U | D153: Portão para tapume com telha trapezoidal em aço galvanizado # 0,43 mm em estrutura de madeira | E153: M2 | F153: 6 | G153: 0 | I153: 0 | J153: 6 | K153: 100.81 | L153: 604.86 | N153: 0 | O153: 6 | P153: 604.86 | Q153: 0 | S153: 0 | T153: 0 | V153: =ROUND($U153*$K153,2) -> 0 | W153: =ROUND($U153*$M153,2) -> 0 | Y153: =ROUND($X153*$K153,2) -> 0 | Z153: =ROUND($X153*$M153,2) -> 0 | AB153: =ROUND($AA153*$K153,2) -> 0 | AC153: =ROUND($AA153*$M153,2) -> 0 | AE153: =ROUND($AD153*$K153,2) -> 0 | AF153: =ROUND($AD153*$M153,2) -> 0 | AH153: =ROUND($AG153*$K153,2) -> 0 | AI153: =ROUND($AG153*$M153,2) -> 0 | AK153: =ROUND($AJ153*$K153,2) -> 0 | AL153: =ROUND($AJ153*$M153,2) -> 0 | AN153: 0 | AO153: 0 | AQ153: 0 | AR153: 0 | AS153: 6 | AT153: 604.86 | AU153: 0 | AV153: 0 | AW153: 0 | AX153: 0 | AZ153: 0 | BA153: NÃO MEDIDO
A154: Planilhado | C154: 040795U | D154: Guarda-corpo de madeira para acessar os abrigos provisórios, (escada/plataforma) | E154: M | F154: 12.6 | G154: 0 | I154: 0 | J154: 12.6 | K154: 58.07 | L154: 731.68 | N154: 0 | P154: 0 | Q154: 0 | S154: 0 | T154: 0 | V154: 0 | W154: 0 | Y154: 0 | Z154: 0 | AB154: 0 | AC154: 0 | AE154: 0 | AF154: 0 | AH154: 0 | AI154: 0 | AK154: 0 | AL154: 0 | AN154: 0 | AO154: 0 | AQ154: 0 | AR154: 0 | AS154: 0 | AT154: 0 | AU154: 0 | AV154: 12.6 | AW154: 731.68 | AX154: 0 | AZ154: 0 | BA154: =IF(AZ154<>0,"MEDIDO","NÃO MEDIDO") -> NÃO MEDIDO
A155: Planilhado | C155: 040799U | D155: Escada de madeira para acessar os abrigos provisórios | E155: M | F155: 8.6 | G155: -8.6 | I155: 0 | J155: 0 | K155: 116.55 | L155: 0 | N155: 0 | P155: 0 | Q155: 0 | S155: 0 | T155: 0 | V155: 0 | W155: 0 | Y155: 0 | Z155: 0 | AB155: 0 | AC155: 0 | AE155: 0 | AF155: 0 | AH155: 0 | AI155: 0 | AK155: 0 | AL155: 0 | AN155: 0 | AO155: 0 | AQ155: 0 | AR155: 0 | AS155: 0 | AT155: 0 | AU155: 0 | AV155: 0 | AW155: 0 | AX155: 0 | AZ155: 0 | BA155: NÃO MEDIDO
A156: Planilhado | C156: 10440.8.2.1U | D156: Plataforma de acesso aos abrigos provisórios em madeira | E156: M2 | F156: 7.7 | G156: -7.7 | I156: 0 | J156: 0 | K156: 96.04 | L156: 0 | N156: 0 | P156: 0 | Q156: 0 | S156: 0 | T156: 0 | V156: 0 | W156: 0 | Y156: 0 | Z156: 0 | AB156: 0 | AC156: 0 | AE156: 0 | AF156: 0 | AH156: 0 | AI156: 0 | AK156: 0 | AL156: 0 | AN156: 0 | AO156: 0 | AQ156: 0 | AR156: 0 | AS156: 0 | AT156: 0 | AU156: 0 | AV156: 0 | AW156: 0 | AX156: 0 | AZ156: 0 | BA156: NÃO MEDIDO
A157: Família | C157: 21000 | D157: LOCAÇÃO DA OBRA | G157: 0 | I157: 0 | J157: 0 | L157: 0 | N157: 0 | P157: 0 | Q157: 0 | S157: 0 | T157: 0 | V157: 0 | W157: 0 | Y157: 0 | Z157: 0 | AB157: 0 | AC157: 0 | AE157: 0 | AF157: 0 | AH157: 0 | AI157: 0 | AK157: 0 | AL157: 0 | AN157: 0 | AO157: 0 | AQ157: 0 | AR157: 0 | AS157: 0 | AT157: 0 | AU157: 0 | AV157: 0 | AW157: 0 | AX157: 0 | AZ157: 0 | BA157: =IF(COUNTIF(BA158:BA161,"MEDIDO")>0,"MEDIDO","NÃO MEDIDO") -> NÃO MEDIDO
A158: Planilhado | C158: 02.101.0000050.SER-U | D158: Placa de identificação de obra tipo banner em lona, incl.pintura e suportes de madeira | E158: M2 | F158: 3.2 | G158: 0 | I158: 0 | J158: 3.2 | K158: 211.09 | L158: 675.49 | N158: 0 | O158: 3.15 | P158: 664.93 | Q158: 0 | S158: 0 | T158: 0 | V158: 0 | W158: 0 | Y158: 0 | Z158: 0 | AB158: 0 | AC158: 0 | AE158: 0 | AF158: 0 | AH158: 0 | AI158: 0 | AK158: 0 | AL158: 0 | AN158: 0 | AO158: 0 | AQ158: 0 | AR158: 0 | AS158: 3.15 | AT158: 664.93 | AU158: 0 | AV158: 0.05 | AW158: 10.56 | AX158: 0 | AZ158: 0 | BA158: NÃO MEDIDO
A159: Planilhado | C159: 02.101.00130.SER-U | D159: Placa de sinalização p/obra em chapa galvanizada nº 22, nas dimensões 1,00x0,80m, inclusive pintura | E159: UN | F159: 3 | G159: 0 | I159: 0 | J159: 3 | K159: 212.89 | L159: 638.67 | N159: 0 | O159: 3 | P159: 638.67 | Q159: 0 | S159: 0 | T159: 0 | V159: 0 | W159: 0 | Y159: 0 | Z159: 0 | AB159: 0 | AC159: 0 | AE159: 0 | AF159: 0 | AH159: 0 | AI159: 0 | AK159: 0 | AL159: 0 | AN159: 0 | AO159: 0 | AQ159: 0 | AR159: 0 | AS159: 3 | AT159: 638.67 | AU159: 0 | AV159: 0 | AW159: 0 | AX159: 0 | AZ159: 0 | BA159: NÃO MEDIDO
A160: Planilhado | C160: 02.104.000005.SER | D160: Gabarito perimétrico para locação da obra | E160: M | F160: 17 | G160: 5.02 | I160: 0 | J160: 22.02 | K160: 60.72 | L160: 1337.05 | N160: 0 | P160: 0 | Q160: 0 | R160: 17 | S160: 1032.24 | T160: 0 | V160: 0 | W160: 0 | Y160: 0 | Z160: 0 | AA160: 5.02 | AB160: 304.81 | AC160: 0 | AE160: 0 | AF160: 0 | AH160: 0 | AI160: 0 | AK160: 0 | AL160: 0 | AN160: 0 | AO160: 0 | AQ160: 0 | AR160: 0 | AS160: 22.02 | AT160: 1337.05 | AU160: 0 | AV160: 0 | AW160: 0 | AX160: 0 | AZ160: 0 | BA160: NÃO MEDIDO
A161: Planilhado | C161: 02.104.000050.SER | D161: Equipe de topografia para serviços de locação e medição em obras | E161: DIA | F161: 5 | G161: 0 | I161: 0 | J161: 5 | K161: 620.11 | L161: 3100.55 | N161: 0 | P161: 0 | Q161: 0 | R161: 3 | S161: 1860.33 | T161: 0 | U161: 2 | V161: 1240.22 | W161: 0 | Y161: 0 | Z161: 0 | AB161: 0 | AC161: 0 | AE161: 0 | AF161: 0 | AH161: 0 | AI161: 0 | AK161: 0 | AL161: 0 | AN161: 0 | AO161: 0 | AQ161: 0 | AR161: 0 | AS161: 5 | AT161: 3100.55 | AU161: 0 | AV161: 0 | AW161: 0 | AX161: 0 | AZ161: 0 | BA161: =IF(AZ161<>0,"MEDIDO","NÃO MEDIDO") -> NÃO MEDIDO
A162: Família | C162: 3 | D162: MOVIMENTO DE TERRA | G162: 0 | I162: 0 | J162: 0 | L162: 0 | N162: 0 | P162: 0 | Q162: 0 | S162: 0 | T162: 0 | V162: 0 | W162: 0 | Y162: 0 | Z162: 0 | AB162: 0 | AC162: 0 | AE162: 0 | AF162: 0 | AH162: 0 | AI162: 0 | AK162: 0 | AL162: 0 | AN162: 0 | AO162: 0 | AQ162: 0 | AR162: 0 | AS162: 0 | AT162: 0 | AU162: 0 | AV162: 0 | AW162: 0 | AX162: 0 | AZ162: 0 | BA162: =IF(COUNTIF(BA163:BA170,"MEDIDO")>0,"MEDIDO","NÃO MEDIDO") -> MEDIDO
A163: Família | C163: 30200 | D163: ESCAVAÇÕES, CARGAS E TRANSPORTES | G163: 0 | I163: 0 | J163: 0 | L163: 0 | N163: 0 | P163: 0 | Q163: 0 | S163: 0 | T163: 0 | V163: 0 | W163: 0 | Y163: 0 | Z163: 0 | AB163: 0 | AC163: 0 | AE163: 0 | AF163: 0 | AH163: 0 | AI163: 0 | AK163: 0 | AL163: 0 | AN163: 0 | AO163: 0 | AQ163: 0 | AR163: 0 | AS163: 0 | AT163: 0 | AU163: 0 | AV163: 0 | AW163: 0 | AX163: 0 | AZ163: 0 | BA163: =IF(COUNTIF(BA164:BA166,"MEDIDO")>0,"MEDIDO","NÃO MEDIDO") -> MEDIDO
A164: Planilhado | C164: 02.105.000010.SER | D164: Escavação mecanizada de vala em solo de 1ª categoria, profundidade até 4 m | E164: M3 | F164: 46.6 | G164: 0 | I164: 0 | J164: 46.6 | K164: 7.93 | L164: 369.54 | N164: 0 | O164: 45.16 | P164: 358.12 | Q164: 0 | S164: 0 | T164: 0 | V164: 0 | W164: 0 | Y164: 0 | Z164: 0 | AB164: 0 | AC164: 0 | AE164: 0 | AF164: 0 | AH164: 0 | AI164: 0 | AK164: 0 | AL164: 0 | AN164: 0 | AO164: 0 | AQ164: 0 | AR164: 0 | AS164: 45.16 | AT164: 358.12 | AU164: 0 | AV164: 1.44 | AW164: 11.42 | AX164: 0 | AZ164: 3.59 | BA164: MEDIDO
A165: Planilhado | C165: 02.105.000060.SER | D165: Escavação manual de vala em solo de 1ª categoria profundidade até 2 m | E165: M3 | F165: 29 | G165: 17.6 | I165: 3.59 | J165: 50.19 | K165: 64.53 | L165: 3238.76 | N165: 0 | P165: 0 | Q165: 0 | R165: 24.5 | S165: 1580.99 | T165: 0 | U165: 3.45 | V165: 222.63 | W165: 0 | Y165: 0 | Z165: 0 | AB165: 0 | AC165: 0 | AE165: 0 | AF165: 0 | AG165: 18.65 | AH165: 1203.48 | AI165: 0 | AK165: 0 | AL165: 0 | AN165: 0 | AO165: 0 | AP165: 3.59 | AQ165: 231.66 | AR165: 0 | AS165: 50.19 | AT165: 3238.76 | AU165: 0 | AV165: 0 | AW165: 0 | AX165: 0 | AZ165: 0 | BA165: NÃO MEDIDO
A166: Planilhado | C166: 02.105.000066.SER | D166: Escoramento contínuo de vala empregando pranchas e longarinas de peroba | E166: M2 | F166: 15.2 | G166: 0 | I166: 0 | J166: 15.2 | K166: 134.49 | L166: 2044.25 | N166: 0 | P166: 0 | Q166: 0 | S166: 0 | T166: 0 | V166: 0 | W166: 0 | Y166: 0 | Z166: 0 | AB166: 0 | AC166: 0 | AE166: 0 | AF166: 0 | AH166: 0 | AI166: 0 | AK166: 0 | AL166: 0 | AN166: 0 | AO166: 0 | AQ166: 0 | AR166: 0 | AS166: 0 | AT166: 0 | AU166: 0 | AV166: 15.2 | AW166: 2044.25 | AX166: 0 | AZ166: 0 | BA166: NÃO MEDIDO
A167: Família | C167: 30300 | D167: ATERRO E COMPACTAÇÃO | G167: 0 | I167: 0 | J167: 0 | L167: 0 | N167: 0 | P167: 0 | Q167: 0 | S167: 0 | T167: 0 | V167: 0 | W167: 0 | Y167: 0 | Z167: 0 | AB167: 0 | AC167: 0 | AE167: 0 | AF167: 0 | AH167: 0 | AI167: 0 | AK167: 0 | AL167: 0 | AN167: 0 | AO167: 0 | AQ167: 0 | AR167: 0 | AS167: 0 | AT167: 0 | AU167: 0 | AV167: 0 | AW167: 0 | AX167: 0 | AZ167: 0 | BA167: =IF(COUNTIF(BA168:BA170,"MEDIDO")>0,"MEDIDO","NÃO MEDIDO") -> MEDIDO
A168: Planilhado | C168: 02.105.000072.SER | D168: Reaterro manual de vala | E168: M3 | F168: 29 | G168: 13.98 | I168: 0 | J168: 42.98 | K168: 7.26 | L168: 312.03 | N168: 0 | P168: 0 | Q168: 0 | S168: 0 | T168: 0 | U168: 18.18 | V168: 131.99 | W168: 0 | Y168: 0 | Z168: 0 | AB168: 0 | AC168: 0 | AE168: 0 | AF168: 0 | AG168: 21.83 | AH168: 158.49 | AI168: 0 | AK168: 0 | AL168: 0 | AN168: 0 | AO168: 0 | AQ168: 0 | AR168: 0 | AS168: 40.01 | AT168: 290.48 | AU168: 0 | AV168: 2.97 | AW168: 21.55 | AX168: 0 | AZ168: 16.52 | BA168: MEDIDO
A169: Planilhado | C169: 02.105.000075.SER | D169: Reaterro mecanizado de vala empregando compactador de placa vibratória em camadas de 20 cm | E169: M3 | F169: 41.2 | G169: 0 | I169: 16.52 | J169: 57.72 | K169: 12.23 | L169: 705.92 | N169: 0 | O169: 41.2 | P169: 503.88 | Q169: 0 | S169: 0 | T169: 0 | V169: 0 | W169: 0 | Y169: 0 | Z169: 0 | AB169: 0 | AC169: 0 | AE169: 0 | AF169: 0 | AH169: 0 | AI169: 0 | AK169: 0 | AL169: 0 | AN169: 0 | AO169: 0 | AP169: 16.52 | AQ169: 202.04 | AR169: 0 | AS169: 57.72 | AT169: 705.92 | AU169: 0 | AV169: 0 | AW169: 0 | AX169: 0 | AZ169: 0 | BA169: NÃO MEDIDO
A170: Planilhado | C170: 030101U | D170: Regularização manual de solo c/nivelamento e apiloamento (20014 SBC) | E170: M3 | F170: 1 | G170: 0 | I170: 0 | J170: 1 | K170: 80.84 | L170: 80.84 | N170: 0 | P170: 0 | Q170: 0 | S170: 0 | T170: 0 | U170: 1 | V170: 80.84 | W170: 0 | Y170: 0 | Z170: 0 | AB170: 0 | AC170: 0 | AE170: 0 | AF170: 0 | AH170: 0 | AI170: 0 | AK170: 0 | AL170: 0 | AN170: 0 | AO170: 0 | AQ170: 0 | AR170: 0 | AS170: 1 | AT170: 80.84 | AU170: 0 | AV170: 0 | AW170: 0 | AX170: 0 | AZ170: 0 | BA170: =IF(AZ170<>0,"MEDIDO","NÃO MEDIDO") -> NÃO MEDIDO
A171: Família | C171: 4 | D171: SERVIÇOS GERAIS | G171: 0 | I171: 0 | J171: 0 | L171: 0 | N171: 0 | P171: 0 | Q171: 0 | S171: 0 | T171: 0 | V171: 0 | W171: 0 | Y171: 0 | Z171: 0 | AB171: 0 | AC171: 0 | AE171: 0 | AF171: 0 | AH171: 0 | AI171: 0 | AK171: 0 | AL171: 0 | AN171: 0 | AO171: 0 | AQ171: 0 | AR171: 0 | AS171: 0 | AT171: 0 | AU171: 0 | AV171: 0 | AW171: 0 | AX171: 0 | AZ171: 0 | BA171: =IF(AZ171<>0,"MEDIDO","NÃO MEDIDO") -> NÃO MEDIDO
A172: Família | C172: 40100 | D172: CARGA E TRANSPORTE MANUAL | G172: 0 | I172: 0 | J172: 0 | L172: 0 | N172: 0 | P172: 0 | Q172: 0 | S172: 0 | T172: 0 | V172: 0 | W172: 0 | Y172: 0 | Z172: 0 | AB172: 0 | AC172: 0 | AE172: 0 | AF172: 0 | AH172: 0 | AI172: 0 | AK172: 0 | AL172: 0 | AN172: 0 | AO172: 0 | AQ172: 0 | AR172: 0 | AS172: 0 | AT172: 0 | AU172: 0 | AV172: 0 | AW172: 0 | AX172: 0 | AZ172: 0.88 | BA172: =IF(COUNTIF(BA173:BA174,"MEDIDO")>0,"MEDIDO","NÃO MEDIDO") -> MEDIDO
A173: Planilhado | C173: 14515.8.12.1U | D173: Transporte horizontal de material de 1ª cat.ou entulho, em carrinhos, a 30m de distância (05.001.0172-0 EMOP) | E173: M3 | F173: 27.8 | G173: 0 | I173: 0 | J173: 27.8 | K173: 26.62 | L173: 740.04 | N173: 0 | O173: 9.58 | P173: 255.02 | Q173: 0 | S173: 0 | T173: 0 | V173: 0 | W173: 0 | Y173: 0 | Z173: 0 | AB173: 0 | AC173: 0 | AE173: 0 | AF173: 0 | AG173: 1.41 | AH173: 37.53 | AI173: 0 | AJ173: 4.44 | AK173: 118.19 | AL173: 0 | AN173: 0 | AO173: 0 | AP173: 0.88 | AQ173: 23.43 | AR173: 0 | AS173: 16.31 | AT173: 434.17 | AU173: 0 | AV173: 11.49 | AW173: 305.87 | AX173: 0 | AZ173: 0.88 | BA173: =IF(AZ173<>0,"MEDIDO","NÃO MEDIDO") -> MEDIDO
A174: Planilhado | C174: 32.109.0001120.SER-U | D174: Carga manual de entulho e outros | E174: M3 | F174: 27.8 | G174: 0 | I174: 0 | J174: 27.8 | K174: 11.62 | L174: 323.04 | N174: 0 | O174: 10 | P174: 116.2 | Q174: 0 | R174: 1.17 | S174: 13.6 | T174: 0 | V174: 0 | W174: 0 | Y174: 0 | Z174: 0 | AB174: 0 | AC174: 0 | AE174: 0 | AF174: 0 | AG174: 1.4 | AH174: 16.27 | AI174: 0 | AJ174: 4.44 | AK174: 51.59 | AL174: 0 | AN174: 0 | AO174: 0 | AP174: 0.88 | AQ174: 10.23 | AR174: 0 | AS174: 17.89 | AT174: 207.89 | AU174: 0 | AV174: 9.91 | AW174: 115.15 | AX174: 0 | AZ174: 0 | BA174: =IF(AZ174<>0,"MEDIDO","NÃO MEDIDO") -> NÃO MEDIDO
A175: Família | C175: 40200 | D175: CARGA E TRANSPORTE MECANIZADO | G175: 0 | I175: 0 | J175: 0 | L175: 0 | N175: 0 | P175: 0 | Q175: 0 | S175: 0 | T175: 0 | V175: 0 | W175: 0 | Y175: 0 | Z175: 0 | AB175: 0 | AC175: 0 | AE175: 0 | AF175: 0 | AH175: 0 | AI175: 0 | AK175: 0 | AL175: 0 | AN175: 0 | AO175: 0 | AQ175: 0 | AR175: 0 | AS175: 0 | AT175: 0 | AU175: 0 | AV175: 0 | AW175: 0 | AX175: 0 | AZ175: 0 | BA175: =IF(COUNTIF(BA176:BA178,"MEDIDO")>0,"MEDIDO","NÃO MEDIDO") -> MEDIDO
A176: Planilhado | C176: 02.105.000076.SER | D176: Carga mecanizada de terra em caminhão basculante | E176: M3 | F176: 7 | G176: 0 | I176: 0 | J176: 7 | K176: 3.37 | L176: 23.59 | N176: 0 | O176: 7 | P176: 23.59 | Q176: 0 | S176: 0 | T176: 0 | V176: 0 | W176: 0 | Y176: 0 | Z176: 0 | AB176: 0 | AC176: 0 | AE176: 0 | AF176: 0 | AH176: 0 | AI176: 0 | AK176: 0 | AL176: 0 | AN176: 0 | AO176: 0 | AQ176: 0 | AR176: 0 | AS176: 7 | AT176: 23.59 | AU176: 0 | AV176: 0 | AW176: 0 | AX176: 0 | AZ176: -504 | BA176: =IF(AZ176<>0,"MEDIDO","NÃO MEDIDO") -> MEDIDO
A177: Planilhado | C177: 31.101.10001.SER-U | D177: Transporte e descarga de terra solta, em caminhão basculante de 17t, incl.motorista | E177: M3XKM | F177: 755.4 | G177: 0 | I177: 0 | J177: 755.4 | K177: 0.64 | L177: 483.46 | N177: 0 | O177: 430.32 | P177: 275.4 | Q177: 0 | S177: 0 | T177: 0 | U177: 112 | V177: 71.68 | W177: 0 | Y177: 0 | Z177: 0 | AB177: 0 | AC177: 0 | AE177: 0 | AF177: 0 | AH177: 0 | AI177: 0 | AK177: 0 | AL177: 0 | AN177: 0 | AO177: 0 | AP177: -504 | AQ177: -322.56 | AR177: 0 | AS177: 38.32 | AT177: 24.52 | AU177: 0 | AV177: 717.08 | AW177: 458.94 | AX177: 0 | AZ177: 0 | BA177: =IF(AZ177<>0,"MEDIDO","NÃO MEDIDO") -> NÃO MEDIDO
A178: Planilhado | C178: 32.109.0001121.SER-U | D178: Carga e descarga mecanizada de entulho | E178: M3 | F178: 13.6 | G178: 0 | I178: 0 | J178: 13.6 | K178: 3.43 | L178: 46.65 | N178: 0 | P178: 0 | Q178: 0 | S178: 0 | T178: 0 | V178: 0 | W178: 0 | Y178: 0 | Z178: 0 | AB178: 0 | AC178: 0 | AE178: 0 | AF178: 0 | AH178: 0 | AI178: 0 | AK178: 0 | AL178: 0 | AN178: 0 | AO178: 0 | AQ178: 0 | AR178: 0 | AS178: 0 | AT178: 0 | AU178: 0 | AV178: 13.6 | AW178: 46.65 | AX178: 0 | AZ178: 0 | BA178: =IF(AZ178<>0,"MEDIDO","NÃO MEDIDO") -> NÃO MEDIDO
A179: Família | C179: 40500 | D179: INSTALAÇÃO DE GUINCHO | G179: 0 | I179: 0 | J179: 0 | L179: 0 | N179: 0 | P179: 0 | Q179: 0 | S179: 0 | T179: 0 | V179: 0 | W179: 0 | Y179: 0 | Z179: 0 | AB179: 0 | AC179: 0 | AE179: 0 | AF179: 0 | AH179: 0 | AI179: 0 | AK179: 0 | AL179: 0 | AN179: 0 | AO179: 0 | AQ179: 0 | AR179: 0 | AS179: 0 | AT179: 0 | AU179: 0 | AV179: 0 | AW179: 0 | AX179: 0 | AZ179: 0 | BA179: =IF(COUNTIF(BA180,"MEDIDO")>0,"MEDIDO","NÃO MEDIDO") -> NÃO MEDIDO
A180: Planilhado | C180: 31.106.10001.EQH-U | D180: Talha-guincho manual, c/cabo, alavanca, carretel e ganchos, sendo c/capac.içamento 4000kg e de tração 5000kg, inclusive operador - CP | E180: H PROD | F180: 176 | G180: 0 | I180: 0 | J180: 176 | K180: 23.73 | L180: 4176.48 | N180: 0 | P180: 0 | Q180: 0 | S180: 0 | T180: 0 | V180: 0 | W180: 0 | Y180: 0 | Z180: 0 | AB180: 0 | AC180: 0 | AE180: 0 | AF180: 0 | AH180: 0 | AI180: 0 | AK180: 0 | AL180: 0 | AM180: 176 | AN180: 4176.48 | AO180: 0 | AQ180: 0 | AR180: 0 | AS180: 176 | AT180: 4176.48 | AU180: 0 | AV180: 0 | AW180: 0 | AX180: 0 | AZ180: 0 | BA180: =IF(AZ180<>0,"MEDIDO","NÃO MEDIDO") -> NÃO MEDIDO
A181: Família | C181: 40600 | D181: INSTALAÇÃO DE PROTEÇÕES | G181: 0 | I181: 0 | J181: 0 | L181: 0 | N181: 0 | P181: 0 | Q181: 0 | S181: 0 | T181: 0 | V181: 0 | W181: 0 | Y181: 0 | Z181: 0 | AB181: 0 | AC181: 0 | AE181: 0 | AF181: 0 | AH181: 0 | AI181: 0 | AK181: 0 | AL181: 0 | AN181: 0 | AO181: 0 | AQ181: 0 | AR181: 0 | AS181: 0 | AT181: 0 | AU181: 0 | AV181: 0 | AW181: 0 | AX181: 0 | AZ181: 0 | BA181: NÃO MEDIDO
A182: Planilhado | C182: 01560.8.1.112U | D182: Tela fachadeira-fornecimento e instalação - (97062-S) | E182: M2 | F182: 250 | G182: 0 | I182: 0 | J182: 250 | K182: 5.54 | L182: 1385 | N182: 0 | P182: 0 | Q182: 0 | S182: 0 | T182: 0 | V182: 0 | W182: 0 | X182: 72 | Y182: 398.88 | Z182: 0 | AB182: 0 | AC182: 0 | AE182: 0 | AF182: 0 | AG182: 24 | AH182: 132.96 | AI182: 0 | AK182: 0 | AL182: 0 | AN182: 0 | AO182: 0 | AQ182: 0 | AR182: 0 | AS182: 96 | AT182: 531.84 | AU182: 0 | AV182: 154 | AW182: 853.16 | AX182: 0 | AZ182: 0 | BA182: NÃO MEDIDO
A183: Planilhado | C183: 02.101.000058.SER | D183: Bandeja salva-vidas secundária em aço, 1,40 m com extensão 0,80 m a 45°, forro com chapa compensado | E183: M | F183: 20.6 | G183: 17.62 | I183: 0 | J183: 38.22 | K183: 621.68 | L183: 23760.61 | N183: 0 | P183: 0 | Q183: 0 | S183: 0 | T183: 0 | V183: 0 | W183: 0 | X183: 18 | Y183: 11190.24 | Z183: 0 | AB183: 0 | AC183: 0 | AE183: 0 | AF183: 0 | AG183: 14 | AH183: 8703.52 | AI183: 0 | AK183: 0 | AL183: 0 | AN183: 0 | AO183: 0 | AQ183: 0 | AR183: 0 | AS183: 32 | AT183: 19893.76 | AU183: 0 | AV183: 6.22 | AW183: 3866.85 | AX183: 0 | AZ183: 0 | BA183: NÃO MEDIDO
A184: Planilhado | C184: 17003.8.7.03U | D184: Lona tipo leve para proteção de telhados, reutilizado 2 vezes, inclusive retirada. Fornecimento e colocação (05.058.0011-0 EMOP) | E184: M2 | F184: 155 | G184: 0 | I184: 0 | J184: 155 | K184: 1.31 | L184: 203.05 | N184: 0 | P184: 0 | Q184: 0 | S184: 0 | T184: 0 | V184: 0 | W184: 0 | Y184: 0 | Z184: 0 | AA184: 38.625 | AB184: 50.6 | AC184: 0 | AD184: 77.25 | AE184: 101.2 | AF184: 0 | AG184: 38.63 | AH184: 50.61 | AI184: 0 | AK184: 0 | AL184: 0 | AN184: 0 | AO184: 0 | AQ184: 0 | AR184: 0 | AS184: 154.51 | AT184: 202.41 | AU184: 0 | AV184: 0.49 | AW184: 0.64 | AX184: 0 | AZ184: 0 | BA184: NÃO MEDIDO
A185: Família | C185: 40700 | D185: ANDAIMES E OUTROS | G185: 0 | I185: 0 | J185: 0 | L185: 0 | N185: 0 | P185: 0 | Q185: 0 | S185: 0 | T185: 0 | V185: 0 | W185: 0 | Y185: 0 | Z185: 0 | AB185: 0 | AC185: 0 | AE185: 0 | AF185: 0 | AH185: 0 | AI185: 0 | AK185: 0 | AL185: 0 | AN185: 0 | AO185: 0 | AQ185: 0 | AR185: 0 | AS185: 0 | AT185: 0 | AU185: 0 | AV185: 0 | AW185: 0 | AX185: 0 | AZ185: 0 | BA185: =IF(COUNTIF(BA186:BA194,"MEDIDO")>0,"MEDIDO","NÃO MEDIDO") -> MEDIDO
A186: Planilhado | C186: 01544.8.5.100U | D186: Locação de andaime metálico de encaixe, inclusive sapatas, escadas, rodapé metálico, piso metálico, guarda corpo e fixações necessárias para a montagem do andaime | E186: M2/MÊS | F186: 979.2 | G186: 160.24 | I186: 0 | J186: 1139.44 | K186: 11.22 | L186: 12784.51 | N186: 0 | P186: 0 | Q186: 0 | S186: 0 | T186: 0 | V186: 0 | W186: 0 | Y186: 0 | Z186: 0 | AA186: 176 | AB186: 1974.72 | AC186: 0 | AD186: 164 | AE186: 1840.08 | AF186: 0 | AG186: 268 | AH186: 3006.96 | AI186: 0 | AJ186: 276 | AK186: 3096.72 | AL186: 0 | AM186: 73.8 | AN186: 828.04 | AO186: 0 | AQ186: 0 | AR186: 0 | AS186: 957.8 | AT186: 10746.52 | AU186: 0 | AV186: 181.64 | AW186: 2037.99 | AX186: 0 | AZ186: 0 | BA186: NÃO MEDIDO
A187: Planilhado | C187: 01544.8.7.1U | D187: Montagem e desmontagem de andaime | E187: M2 | F187: 326.4 | G187: 411.04 | I187: 0 | J187: 737.44 | K187: 4.45 | L187: 3281.61 | N187: 0 | P187: 0 | Q187: 0 | S187: 0 | T187: 0 | V187: 0 | W187: 0 | X187: 88 | Y187: 391.6 | Z187: 0 | AB187: 0 | AC187: 0 | AE187: 0 | AF187: 0 | AG187: 60 | AH187: 267 | AI187: 0 | AJ187: 248 | AK187: 1103.6 | AL187: 0 | AM187: 96 | AN187: 427.2 | AO187: 0 | AQ187: 0 | AR187: 0 | AS187: 492 | AT187: 2189.4 | AU187: 0 | AV187: 245.44 | AW187: 1092.21 | AX187: 0 | AZ187: 0 | BA187: NÃO MEDIDO
A188: Planilhado | C188: 01544.8.8.3U | D188: Transporte de andaime tubular, cons.área de proj.vert.do andaime, excl.carga, descarga e tempo de espera do caminhão (04.020.0122-0 EMOP) | E188: M2XKM | F188: 9792 | G188: 0 | I188: 0 | J188: 9792 | K188: 0.16 | L188: 1566.72 | N188: 0 | P188: 0 | Q188: 0 | S188: 0 | T188: 0 | V188: 0 | W188: 0 | Y188: 0 | Z188: 0 | AB188: 0 | AC188: 0 | AD188: 2640 | AE188: 422.4 | AF188: 0 | AH188: 0 | AI188: 0 | AJ188: 2460 | AK188: 393.6 | AL188: 0 | AM188: 2880 | AN188: 460.8 | AO188: 0 | AQ188: 0 | AR188: 0 | AS188: 7980 | AT188: 1276.8 | AU188: 0 | AV188: 1812 | AW188: 289.92 | AX188: 0 | AZ188: 0 | BA188: NÃO MEDIDO
A189: Planilhado | C189: 05.103.00005100.SER-U | D189: Escoramento metálico, com escoras telescopaveis ou torres de carga, inclusive vigamento principal e secundário, para estrutura convencional de concreto armado - Aluguel (11.050.0010-0 EMOP) | E189: M3XMES | F189: 155.4 | G189: 0 | I189: 0 | J189: 155.4 | K189: 6.84 | L189: 1062.94 | N189: 0 | P189: 0 | Q189: 0 | S189: 0 | T189: 0 | V189: 0 | W189: 0 | X189: 75.3 | Y189: 515.05 | Z189: 0 | AA189: 75.3 | AB189: 515.05 | AC189: 0 | AE189: 0 | AF189: 0 | AH189: 0 | AI189: 0 | AK189: 0 | AL189: 0 | AN189: 0 | AO189: 0 | AQ189: 0 | AR189: 0 | AS189: 150.6 | AT189: 1030.1 | AU189: 0 | AV189: 4.8 | AW189: 32.84 | AX189: 0 | AZ189: 0 | BA189: =IF(AZ189<>0,"MEDIDO","NÃO MEDIDO") -> NÃO MEDIDO
A190: Planilhado | C190: 05.103.00005101.SER-U | D190: Montagem e desmontagem de escoramento metálico, compreendendo transporte do material para obra e desta para o depósito, inclusive carga e descarga (11.055.0010-0 EMOP) | E190: M3 | F190: 77.7 | G190: 0 | I190: 0 | J190: 77.7 | K190: 11.28 | L190: 876.46 | N190: 0 | P190: 0 | Q190: 0 | S190: 0 | T190: 0 | V190: 0 | W190: 0 | X190: 37.65 | Y190: 424.69 | Z190: 0 | AA190: 30.12 | AB190: 339.75 | AC190: 0 | AE190: 0 | AF190: 0 | AH190: 0 | AI190: 0 | AK190: 0 | AL190: 0 | AN190: 0 | AO190: 0 | AQ190: 0 | AR190: 0 | AS190: 67.77 | AT190: 764.44 | AU190: 0 | AV190: 9.93 | AW190: 112.02 | AX190: 0 | AZ190: 0 | BA190: =IF(AZ190<>0,"MEDIDO","NÃO MEDIDO") -> NÃO MEDIDO
A191: Planilhado | C191: 14515.8.10.01U | D191: Carga e descarga manual de andaime tubular, incl.tempo de espera do caminhão, cons.área proj.vert.(04.021.0010-0 EMOP) | E191: M2 | F191: 326.4 | G191: 411.04 | I191: 0 | J191: 737.44 | K191: 0.8 | L191: 589.95 | N191: 0 | P191: 0 | Q191: 0 | S191: 0 | T191: 0 | V191: 0 | W191: 0 | X191: 88 | Y191: 70.4 | Z191: 0 | AB191: 0 | AC191: 0 | AD191: 44.28 | AE191: 35.42 | AF191: 0 | AH191: 0 | AI191: 0 | AJ191: 164 | AK191: 131.2 | AL191: 0 | AM191: 192 | AN191: 153.6 | AO191: 0 | AQ191: 0 | AR191: 0 | AS191: 488.28 | AT191: 390.62 | AU191: 0 | AV191: 249.16 | AW191: 199.33 | AX191: 0 | AZ191: 0 | BA191: NÃO MEDIDO
A192: Ñ Plan s/desc | C192: 01544.8.5.11U | D192: Torre de andaime metálicotubular de encaixe c/ rodízio de borracha H= 2,00 m - locação | E192: UNX/MÊS | G192: 8 | I192: 0 | J192: 8 | L192: 0 | M192: 133.28 | N192: 1066.24 | V192: 0 | W192: 0 | Y192: 0 | Z192: 0 | AB192: 0 | AC192: 0 | AE192: 0 | AF192: 0 | AH192: 0 | AI192: 0 | AK192: 0 | AL192: 0 | AM192: 1 | AN192: 0 | AO192: 133.28 | AQ192: 0 | AR192: 0 | AS192: 1 | AT192: 0 | AU192: 133.28 | AV192: 7 | AW192: 0 | AX192: 932.96 | AZ192: 1 | BA192: MEDIDO
A193: Ñ Plan s/desc | C193: 01544.8.5.12U | D193: Torre de andaime metálicotubular de encaixe c/ rodízio de borracha H= 4,00 m - locação | E193: UNX/MÊS | G193: 9 | I193: 0 | J193: 9 | L193: 0 | M193: 195.5 | N193: 1759.5 | V193: 0 | W193: 0 | Y193: 0 | Z193: 0 | AA193: 1 | AB193: 0 | AC193: 195.5 | AE193: 0 | AF193: 0 | AG193: 1 | AH193: 0 | AI193: 195.5 | AJ193: 1 | AK193: 0 | AL193: 195.5 | AN193: 0 | AO193: 0 | AP193: 1 | AQ193: 0 | AR193: 195.5 | AS193: 4 | AT193: 0 | AU193: 782 | AV193: 5 | AW193: 0 | AX193: 977.5 | AZ193: 0 | BA193: NÃO MEDIDO
A194: Ñ Plan s/desc | C194: 01544.8.6.1U | D194: Plataforma em tábuas de pinho,inclus.movimentação (util.6x) | E194: M2 | G194: 5 | I194: 0 | J194: 5 | L194: 0 | M194: 6.88 | N194: 34.4 | V194: 0 | W194: 0 | Y194: 0 | Z194: 0 | AA194: 1.2 | AB194: 0 | AC194: 8.26 | AD194: 1.2 | AE194: 0 | AF194: 8.26 | AG194: 1.2 | AH194: 0 | AI194: 8.26 | AJ194: 1.2 | AK194: 0 | AL194: 8.26 | AN194: 0 | AO194: 0 | AQ194: 0 | AR194: 0 | AS194: 4.8 | AT194: 0 | AU194: 33.04 | AV194: 0.2 | AW194: 0 | AX194: 1.36 | AZ194: 0 | BA194: NÃO MEDIDO
A195: Família | C195: 40800 | D195: SEGREGAÇÃO DE RESÍDUOS DA CONSTRUÇÃO CIVIL | G195: 0 | I195: 0 | J195: 0 | L195: 0 | N195: 0 | P195: 0 | Q195: 0 | S195: 0 | T195: 0 | V195: 0 | W195: 0 | Y195: 0 | Z195: 0 | AB195: 0 | AC195: 0 | AE195: 0 | AF195: 0 | AH195: 0 | AI195: 0 | AK195: 0 | AL195: 0 | AN195: 0 | AO195: 0 | AQ195: 0 | AR195: 0 | AS195: 0 | AT195: 0 | AU195: 0 | AV195: 0 | AW195: 0 | AX195: 0 | AZ195: 8 | BA195: =IF(COUNTIF(BA196:BA197,"MEDIDO")>0,"MEDIDO","NÃO MEDIDO") -> NÃO MEDIDO
A196: Planilhado | C196: 14515.8.1.33U | D196: Retirada de entulho de obra com caçamba de aço tipo container com 5m³ de capacidade, inclusive carregamento, transporte e descarregamento. Custo por unidade de caçamba e inclui a taxa para descarga em locais autorizados (04.014.0095-0 EMOP) | E196: UN | F196: 14 | G196: 0 | I196: 8 | J196: 22 | K196: 312.31 | L196: 6870.82 | N196: 0 | O196: 2 | P196: 624.62 | Q196: 0 | R196: 5 | S196: 1561.55 | T196: 0 | V196: 0 | W196: 0 | X196: 1 | Y196: 312.31 | Z196: 0 | AA196: 1 | AB196: 312.31 | AC196: 0 | AE196: 0 | AF196: 0 | AH196: 0 | AI196: 0 | AK196: 0 | AL196: 0 | AM196: 5 | AN196: 1561.55 | AO196: 0 | AP196: 8 | AQ196: 2498.48 | AR196: 0 | AS196: 22 | AT196: 6870.82 | AU196: 0 | AV196: 0 | AW196: 0 | AX196: 0 | AZ196: 0 | BA196: NÃO MEDIDO
A197: Planilhado | C197: 14515.8.1.93U | D197: Disposição final de materiais e resíduos de obras em locais de operação e disposição final apropriados, autorizados e/ou licenciados pelos órgãos de licenciamento e de controle ambiental, medida por tonelada transportada, sendo comprovada conforme legislação pertinente (TC 09.05.0700 SCO/FGV) | E197: T | F197: 9.8 | G197: 0 | I197: 0 | J197: 9.8 | K197: 19.2 | L197: 188.16 | N197: 0 | P197: 0 | Q197: 0 | S197: 0 | T197: 0 | V197: 0 | W197: 0 | Y197: 0 | Z197: 0 | AB197: 0 | AC197: 0 | AE197: 0 | AF197: 0 | AH197: 0 | AI197: 0 | AK197: 0 | AL197: 0 | AN197: 0 | AO197: 0 | AQ197: 0 | AR197: 0 | AS197: 0 | AT197: 0 | AU197: 0 | AV197: 9.8 | AW197: 188.16 | AX197: 0 | AZ197: 0 | BA197: NÃO MEDIDO
A198: Família | C198: 5 | D198: INFRA-ESTRUTURA | G198: 0 | I198: 0 | J198: 0 | L198: 0 | N198: 0 | P198: 0 | Q198: 0 | S198: 0 | T198: 0 | V198: 0 | W198: 0 | Y198: 0 | Z198: 0 | AB198: 0 | AC198: 0 | AE198: 0 | AF198: 0 | AH198: 0 | AI198: 0 | AK198: 0 | AL198: 0 | AN198: 0 | AO198: 0 | AQ198: 0 | AR198: 0 | AS198: 0 | AT198: 0 | AU198: 0 | AV198: 0 | AW198: 0 | AX198: 0 | AZ198: 0 | BA198: =IF(COUNTIF(BA199:BA213,"MEDIDO")>0,"MEDIDO","NÃO MEDIDO") -> NÃO MEDIDO
A199: Família | C199: 50200 | D199: SERVIÇOS GERAIS DE FUNDAÇÃO | G199: 0 | I199: 0 | J199: 0 | L199: 0 | N199: 0 | P199: 0 | Q199: 0 | S199: 0 | T199: 0 | V199: 0 | W199: 0 | Y199: 0 | Z199: 0 | AB199: 0 | AC199: 0 | AE199: 0 | AF199: 0 | AH199: 0 | AI199: 0 | AK199: 0 | AL199: 0 | AN199: 0 | AO199: 0 | AQ199: 0 | AR199: 0 | AS199: 0 | AT199: 0 | AU199: 0 | AV199: 0 | AW199: 0 | AX199: 0 | AZ199: 0 | BA199: =IF(COUNTIF(BA200:BA204,"MEDIDO")>0,"MEDIDO","NÃO MEDIDO") -> NÃO MEDIDO
A200: Planilhado | C200: 02.105.0000730.SER-U | D200: Base de brita corrida | E200: M3 | F200: 0.7 | G200: 0 | I200: 0 | J200: 0.7 | K200: 94.48 | L200: 66.14 | N200: 0 | P200: 0 | Q200: 0 | S200: 0 | T200: 0 | V200: 0 | W200: 0 | Y200: 0 | Z200: 0 | AB200: 0 | AC200: 0 | AE200: 0 | AF200: 0 | AH200: 0 | AI200: 0 | AK200: 0 | AL200: 0 | AN200: 0 | AO200: 0 | AQ200: 0 | AR200: 0 | AS200: 0 | AT200: 0 | AU200: 0 | AV200: 0.7 | AW200: 66.14 | AX200: 0 | AZ200: 0 | BA200: NÃO MEDIDO
A201: Planilhado | C201: 02240.8.1.3U | D201: Esgotamento água de subsolo, de infiltração ou alagamento, c/bomba elétrica 3,0HP, excl.energia elétrica | E201: H | F201: 220 | G201: 0 | I201: 0 | J201: 220 | K201: 0.28 | L201: 61.6 | N201: 0 | P201: 0 | Q201: 0 | S201: 0 | T201: 0 | V201: 0 | W201: 0 | Y201: 0 | Z201: 0 | AB201: 0 | AC201: 0 | AE201: 0 | AF201: 0 | AH201: 0 | AI201: 0 | AK201: 0 | AL201: 0 | AN201: 0 | AO201: 0 | AQ201: 0 | AR201: 0 | AS201: 0 | AT201: 0 | AU201: 0 | AV201: 220 | AW201: 61.6 | AX201: 0 | AZ201: 0 | BA201: =IF(COUNTIF(BA202:BA204,"MEDIDO")>0,"MEDIDO","NÃO MEDIDO") -> NÃO MEDIDO
A202: Planilhado | C202: 04.110.000048.SER-U | D202: Lastro de concreto, incluindo preparo e lançamento, exclusive betoneira | E202: M3 | F202: 0.6 | G202: 0 | I202: 0 | J202: 0.6 | K202: 580.42 | L202: 348.25 | N202: 0 | P202: 0 | Q202: 0 | S202: 0 | T202: 0 | U202: 0.6 | V202: 348.25 | W202: 0 | Y202: 0 | Z202: 0 | AB202: 0 | AC202: 0 | AE202: 0 | AF202: 0 | AH202: 0 | AI202: 0 | AK202: 0 | AL202: 0 | AN202: 0 | AO202: 0 | AQ202: 0 | AR202: 0 | AS202: 0.6 | AT202: 348.25 | AU202: 0 | AV202: 0 | AW202: 0 | AX202: 0 | AZ202: 0 | BA202: NÃO MEDIDO
... 342 more rows
